Workbook

Sheet Disclaimer
B4: Disclaimer
B5: 1 | C5: Neither the U.S. Department of Energy (DOE) National Energy Technology Laboratory (NETL) nor any person acting on behalf of these organizations:
C6: A. Makes any warranty or representation, express or implied, with respect to the accuracy, completeness, or usefulness of the information contained in this document, or that the use of any information, apparatus, method, or process disclosed in this document may not infringe on privately owned rights; or
C7: B. Assumes any liability with this report as to its use, or damages resulting from the use of any information, apparatus, method, or process disclosed in this document.
B8: 2 | C8: Reference herein to any specific commercial product, process, or service by trade name, trademark, manufacturer, or otherwise, does not necessarily constitute or imply its endorsement, recommendation, or favoring by NETL. The views and opinions of the authors expressed herein do not necessarily state or reflect those of NETL.
B10: Contact Information

Sheet Instruction
B1: Instructions
B2: Please read these instruction before using the model. This model requires the @RISK add-in to be installed, macros enabled, and access to the VBA project object model allowed.
B3: Quick links >>> | D3: Go to Dashboard | F3: Go to Enabling Macros | H3: Go to Grid Mix Explorer ribbon
B4: Enabling Macros
B5: This model has built-in functions to calculate and update results. In order to let the model operate functionally, the macros have to be enabled.
B25: Grid Mix Explorer Ribbon
B26: This model has a built-in ribbon tab (Grid Mix Explorer) that collectively locates the model functions to help you find them easily.
B27: It contains the Setting group to control the Tech Mixer, Reporting Metrics, and the GWP Factor.
B36: Tech Mixer
B37: The editor allows you to change the technology ratio and save your custom mix.
B63: Reporting Metrics
B64: If you would like to change the reporting units, you can change the numerator and denominator units. The environmental chart and table will be updated accordingly. You can also change the GWP Factor. Currently, this model supports IPCC 2001 and 2007, including 20, 100 and 500 year time horizons.

Sheet Dashboard
B32: Category (Units) | C32: Material or Energy Flow | D32: Total | E32: Current | M32: New/Future
D33: Total | E33: Fleet Coal | F33: Fleet Natural Gas | G33: Existing Nuclear | H33: Existing Hydro | I33: Petroleum | J33: Onshore Wind | K33: Geothermal | L33: Solar Thermal | M33: SCPC | N33: SCPC/CCS | O33: NGCC | P33: NGCC/CCS | Q33: IGCC | R33: IGCC/CCS | S33: Gen III+ Nuclear | T33: Existing Nuclear w/ Centrifuge Enrich | U33: Gen III+ Nuclear w/ Centrifuge Enrich | V33: Greenfield Hydro | W33: Power Addition Hydro | X33: Power Upgrade Hydro | Y33: Advanced Onshore Wind | Z33: Offshore Wind
B34: ="GHG" &UnitLabel -> GHG (kg/MWh) | C34: CO₂ | D34: =SUM(E34:Z34) -> 562.4470751 | E34: =Data!F3*Parameters!$I$3/100*UnitConv -> 411.9584172 | F34: =Data!G3*Parameters!$I$4/100*UnitConv -> 129.7394715 | G34: =Data!H3*Parameters!$I$5/100*UnitConv -> 6.325566443 | H34: =Data!I3*Parameters!$I$6/100*UnitConv -> 1.437158102 | I34: =Data!J3*Parameters!$I$7/100*UnitConv -> 11.24373642 | J34: =Data!K3*Parameters!$I$8/100*UnitConv -> 0.7514023177 | K34: =Data!L3*Parameters!$I$9/100*UnitConv -> 0.925039407 | L34: =Data!M3*Parameters!$I$10/100*UnitConv -> 0.0662836092 | M34: =Data!N3*Parameters!$I$11/100*UnitConv -> 0 | N34: =Data!O3*Parameters!$I$12/100*UnitConv -> 0 | O34: =Data!P3*Parameters!$I$13/100*UnitConv -> 0 | P34: =Data!Q3*Parameters!$I$14/100*UnitConv -> 0 | Q34: =Data!R3*Parameters!$I$15/100*UnitConv -> 0 | R34: =Data!S3*Parameters!$I$16/100*UnitConv -> 0 | S34: =Data!T3*Parameters!$I$17/100*UnitConv -> 0 | T34: =Data!U3*Parameters!$I$18/100*UnitConv -> 0 | U34: =Data!V3*Parameters!$I$19/100*UnitConv -> 0 | V34: =Data!W3*Parameters!$I$20/100*UnitConv -> 0 | W34: =Data!X3*Parameters!$I$21/100*UnitConv -> 0 | X34: =Data!Y3*Parameters!$I$22/100*UnitConv -> 0 | Y34: =Data!Z3*Parameters!$I$23/100*UnitConv -> 0 | Z34: =Data!AA3*Parameters!$I$24/100*UnitConv -> 0
C35: N₂O | D35: =SUM(E35:Z35) -> 0.008391966279 | E35: =Data!F4*Parameters!$I$3/100*UnitConv -> 0.007620930233 | F35: =Data!G4*Parameters!$I$4/100*UnitConv -> 0.0004232945248 | G35: =Data!H4*Parameters!$I$5/100*UnitConv -> 0.0001455646151 | H35: =Data!I4*Parameters!$I$6/100*UnitConv -> 5.646369537e-08 | I35: =Data!J4*Parameters!$I$7/100*UnitConv -> 0.0001532171317 | J35: =Data!K4*Parameters!$I$8/100*UnitConv -> 3.564508804e-05 | K35: =Data!L4*Parameters!$I$9/100*UnitConv -> 1.612066911e-07 | L35: =Data!M4*Parameters!$I$10/100*UnitConv -> 1.309701646e-05 | M35: =Data!N4*Parameters!$I$11/100*UnitConv -> 0 | N35: =Data!O4*Parameters!$I$12/100*UnitConv -> 0 | O35: =Data!P4*Parameters!$I$13/100*UnitConv -> 0 | P35: =Data!Q4*Parameters!$I$14/100*UnitConv -> 0 | Q35: =Data!R4*Parameters!$I$15/100*UnitConv -> 0 | R35: =Data!S4*Parameters!$I$16/100*UnitConv -> 0 | S35: =Data!T4*Parameters!$I$17/100*UnitConv -> 0 | T35: =Data!U4*Parameters!$I$18/100*UnitConv -> 0 | U35: =Data!V4*Parameters!$I$19/100*UnitConv -> 0 | V35: =Data!W4*Parameters!$I$20/100*UnitConv -> 0 | W35: =Data!X4*Parameters!$I$21/100*UnitConv -> 0 | X35: =Data!Y4*Parameters!$I$22/100*UnitConv -> 0 | Y35: =Data!Z4*Parameters!$I$23/100*UnitConv -> 0 | Z35: =Data!AA4*Parameters!$I$24/100*UnitConv -> 0
C36: CH₄ | D36: 1.185805935 | E36: =Data!F5*Parameters!$I$3/100*UnitConv -> 0.6247653258 | F36: =Data!G5*Parameters!$I$4/100*UnitConv -> 0.5039786406 | G36: =Data!H5*Parameters!$I$5/100*UnitConv -> 0.02025167594 | H36: =Data!I5*Parameters!$I$6/100*UnitConv -> 0.01979917281 | I36: =Data!J5*Parameters!$I$7/100*UnitConv -> 0.01333051107 | J36: =Data!K5*Parameters!$I$8/100*UnitConv -> 0.00177780406 | K36: =Data!L5*Parameters!$I$9/100*UnitConv -> 0.001714845332 | L36: =Data!M5*Parameters!$I$10/100*UnitConv -> 0.0001879588519 | M36: =Data!N5*Parameters!$I$11/100*UnitConv -> 0 | N36: =Data!O5*Parameters!$I$12/100*UnitConv -> 0 | O36: =Data!P5*Parameters!$I$13/100*UnitConv -> 0 | P36: =Data!Q5*Parameters!$I$14/100*UnitConv -> 0 | Q36: =Data!R5*Parameters!$I$15/100*UnitConv -> 0 | R36: =Data!S5*Parameters!$I$16/100*UnitConv -> 0 | S36: =Data!T5*Parameters!$I$17/100*UnitConv -> 0 | T36: =Data!U5*Parameters!$I$18/100*UnitConv -> 0 | U36: =Data!V5*Parameters!$I$19/100*UnitConv -> 0 | V36: =Data!W5*Parameters!$I$20/100*UnitConv -> 0 | W36: =Data!X5*Parameters!$I$21/100*UnitConv -> 0 | X36: =Data!Y5*Parameters!$I$22/100*UnitConv -> 0 | Y36: =Data!Z5*Parameters!$I$23/100*UnitConv -> 0 | Z36: =Data!AA5*Parameters!$I$24/100*UnitConv -> 0
C37: SF₆ | D37: 0.0001441270329 | E37: =Data!F6*Parameters!$I$3/100*UnitConv -> 5.640144497e-05 | F37: =Data!G6*Parameters!$I$4/100*UnitConv -> 4.001334797e-05 | G37: =Data!H6*Parameters!$I$5/100*UnitConv -> 2.808288e-05 | H37: =Data!I6*Parameters!$I$6/100*UnitConv -> 1.131912e-05 | I37: =Data!J6*Parameters!$I$7/100*UnitConv -> 1.4328e-06 | J37: =Data!K6*Parameters!$I$8/100*UnitConv -> 6.01776e-06 | K37: =Data!L6*Parameters!$I$9/100*UnitConv -> 5.7312e-07 | L37: =Data!M6*Parameters!$I$10/100*UnitConv -> 2.8656e-07 | M37: =Data!N6*Parameters!$I$11/100*UnitConv -> 0 | N37: =Data!O6*Parameters!$I$12/100*UnitConv -> 0 | O37: =Data!P6*Parameters!$I$13/100*UnitConv -> 0 | P37: =Data!Q6*Parameters!$I$14/100*UnitConv -> 0 | Q37: =Data!R6*Parameters!$I$15/100*UnitConv -> 0 | R37: =Data!S6*Parameters!$I$16/100*UnitConv -> 0 | S37: =Data!T6*Parameters!$I$17/100*UnitConv -> 0 | T37: =Data!U6*Parameters!$I$18/100*UnitConv -> 0 | U37: =Data!V6*Parameters!$I$19/100*UnitConv -> 0 | V37: =Data!W6*Parameters!$I$20/100*UnitConv -> 0 | W37: =Data!X6*Parameters!$I$21/100*UnitConv -> 0 | X37: =Data!Y6*Parameters!$I$22/100*UnitConv -> 0 | Y37: =Data!Z6*Parameters!$I$23/100*UnitConv -> 0 | Z37: =Data!AA6*Parameters!$I$24/100*UnitConv -> 0
C38: =GHGLabel -> kg CO₂e/ delievered MWh (IPCC 2013 100-yr GWP) | D38: 603.6321094 | E38: =E34*GWPCO2+E35*GWPN2O+E36*GWPCH4+E37*GWPSF6 -> 434.0463575 | F38: 145.9113175 | G38: 7.631639025 | H38: 2.297147569 | I38: 11.71792509 | J38: 0.9555997478 | K38: 0.9899958068 | L38: 0.08212724412 | M38: 0 | N38: 0 | O38: 0 | P38: 0 | Q38: 0 | R38: 0 | S38: 0 | T38: 0 | U38: 0 | V38: 0 | W38: 0 | X38: 0 | Y38: 0 | Z38: 0
B39: ="Other Air" & UnitLabel -> Other Air (kg/MWh) | C39: Pb | D39: 1.607731855e-05 | E39: =Data!F8*Parameters!$I$3/100*UnitConv -> 3.277859043e-06 | F39: =Data!G8*Parameters!$I$4/100*UnitConv -> 1.929241661e-06 | G39: =Data!H8*Parameters!$I$5/100*UnitConv -> 5.638977907e-07 | H39: =Data!I8*Parameters!$I$6/100*UnitConv -> 4.081052314e-08 | I39: =Data!J8*Parameters!$I$7/100*UnitConv -> 7.539130373e-06 | J39: =Data!K8*Parameters!$I$8/100*UnitConv -> 2.617533121e-06 | K39: =Data!L8*Parameters!$I$9/100*UnitConv -> 3.183610754e-08 | L39: =Data!M8*Parameters!$I$10/100*UnitConv -> 7.700992617e-08 | M39: =Data!N8*Parameters!$I$11/100*UnitConv -> 0 | N39: =Data!O8*Parameters!$I$12/100*UnitConv -> 0 | O39: =Data!P8*Parameters!$I$13/100*UnitConv -> 0 | P39: =Data!Q8*Parameters!$I$14/100*UnitConv -> 0 | Q39: =Data!R8*Parameters!$I$15/100*UnitConv -> 0 | R39: =Data!S8*Parameters!$I$16/100*UnitConv -> 0 | S39: =Data!T8*Parameters!$I$17/100*UnitConv -> 0 | T39: =Data!U8*Parameters!$I$18/100*UnitConv -> 0 | U39: =Data!V8*Parameters!$I$19/100*UnitConv -> 0 | V39: =Data!W8*Parameters!$I$20/100*UnitConv -> 0 | W39: =Data!X8*Parameters!$I$21/100*UnitConv -> 0 | X39: =Data!Y8*Parameters!$I$22/100*UnitConv -> 0 | Y39: =Data!Z8*Parameters!$I$23/100*UnitConv -> 0 | Z39: =Data!AA8*Parameters!$I$24/100*UnitConv -> 0
C40: Hg | D40: 1.04974032e-05 | E40: =Data!F9*Parameters!$I$3/100*UnitConv -> 1.015551287e-05 | F40: =Data!G9*Parameters!$I$4/100*UnitConv -> 3.754741525e-08 | G40: =Data!H9*Parameters!$I$5/100*UnitConv -> 2.653042957e-07 | H40: =Data!I9*Parameters!$I$6/100*UnitConv -> 1.386879416e-10 | I40: =Data!J9*Parameters!$I$7/100*UnitConv -> 2.596597107e-08 | J40: =Data!K9*Parameters!$I$8/100*UnitConv -> 1.04658446e-08 | K40: =Data!L9*Parameters!$I$9/100*UnitConv -> 2.396363721e-10 | L40: =Data!M9*Parameters!$I$10/100*UnitConv -> 2.228477169e-09 | M40: =Data!N9*Parameters!$I$11/100*UnitConv -> 0 | N40: =Data!O9*Parameters!$I$12/100*UnitConv -> 0 | O40: =Data!P9*Parameters!$I$13/100*UnitConv -> 0 | P40: =Data!Q9*Parameters!$I$14/100*UnitConv -> 0 | Q40: =Data!R9*Parameters!$I$15/100*UnitConv -> 0 | R40: =Data!S9*Parameters!$I$16/100*UnitConv -> 0 | S40: =Data!T9*Parameters!$I$17/100*UnitConv -> 0 | T40: =Data!U9*Parameters!$I$18/100*UnitConv -> 0 | U40: =Data!V9*Parameters!$I$19/100*UnitConv -> 0 | V40: =Data!W9*Parameters!$I$20/100*UnitConv -> 0 | W40: =Data!X9*Parameters!$I$21/100*UnitConv -> 0 | X40: =Data!Y9*Parameters!$I$22/100*UnitConv -> 0 | Y40: =Data!Z9*Parameters!$I$23/100*UnitConv -> 0 | Z40: =Data!AA9*Parameters!$I$24/100*UnitConv -> 0
C41: NH₃ | D41: 0.008478517743 | E41: =Data!F10*Parameters!$I$3/100*UnitConv -> 0.0002335966557 | F41: =Data!G10*Parameters!$I$4/100*UnitConv -> 0.005979316885 | G41: =Data!H10*Parameters!$I$5/100*UnitConv -> 0.0003917046378 | H41: =Data!I10*Parameters!$I$6/100*UnitConv -> 1.527645572e-08 | I41: =Data!J10*Parameters!$I$7/100*UnitConv -> 3.483015292e-05 | J41: =Data!K10*Parameters!$I$8/100*UnitConv -> 2.511776711e-05 | K41: =Data!L10*Parameters!$I$9/100*UnitConv -> 0.001813739045 | L41: =Data!M10*Parameters!$I$10/100*UnitConv -> 1.973230343e-07 | M41: =Data!N10*Parameters!$I$11/100*UnitConv -> 0 | N41: =Data!O10*Parameters!$I$12/100*UnitConv -> 0 | O41: =Data!P10*Parameters!$I$13/100*UnitConv -> 0 | P41: =Data!Q10*Parameters!$I$14/100*UnitConv -> 0 | Q41: =Data!R10*Parameters!$I$15/100*UnitConv -> 0 | R41: =Data!S10*Parameters!$I$16/100*UnitConv -> 0 | S41: =Data!T10*Parameters!$I$17/100*UnitConv -> 0 | T41: =Data!U10*Parameters!$I$18/100*UnitConv -> 0 | U41: =Data!V10*Parameters!$I$19/100*UnitConv -> 0 | V41: =Data!W10*Parameters!$I$20/100*UnitConv -> 0 | W41: =Data!X10*Parameters!$I$21/100*UnitConv -> 0 | X41: =Data!Y10*Parameters!$I$22/100*UnitConv -> 0 | Y41: =Data!Z10*Parameters!$I$23/100*UnitConv -> 0 | Z41: =Data!AA10*Parameters!$I$24/100*UnitConv -> 0
C42: CO | D42: 0.08406775365 | E42: =Data!F11*Parameters!$I$3/100*UnitConv -> 0.05457555232 | F42: =Data!G11*Parameters!$I$4/100*UnitConv -> 0.01364066111 | G42: =Data!H11*Parameters!$I$5/100*UnitConv -> 0.006994002527 | H42: =Data!I11*Parameters!$I$6/100*UnitConv -> 1.858043879e-05 | I42: =Data!J11*Parameters!$I$7/100*UnitConv -> 0.005559196757 | J42: =Data!K11*Parameters!$I$8/100*UnitConv -> 0.001966888334 | K42: =Data!L11*Parameters!$I$9/100*UnitConv -> 9.461099231e-05 | L42: =Data!M11*Parameters!$I$10/100*UnitConv -> 0.001218261167 | M42: =Data!N11*Parameters!$I$11/100*UnitConv -> 0 | N42: =Data!O11*Parameters!$I$12/100*UnitConv -> 0 | O42: =Data!P11*Parameters!$I$13/100*UnitConv -> 0 | P42: =Data!Q11*Parameters!$I$14/100*UnitConv -> 0 | Q42: =Data!R11*Parameters!$I$15/100*UnitConv -> 0 | R42: =Data!S11*Parameters!$I$16/100*UnitConv -> 0 | S42: =Data!T11*Parameters!$I$17/100*UnitConv -> 0 | T42: =Data!U11*Parameters!$I$18/100*UnitConv -> 0 | U42: =Data!V11*Parameters!$I$19/100*UnitConv -> 0 | V42: =Data!W11*Parameters!$I$20/100*UnitConv -> 0 | W42: =Data!X11*Parameters!$I$21/100*UnitConv -> 0 | X42: =Data!Y11*Parameters!$I$22/100*UnitConv -> 0 | Y42: =Data!Z11*Parameters!$I$23/100*UnitConv -> 0 | Z42: =Data!AA11*Parameters!$I$24/100*UnitConv -> 0
C43: NOX | D43: 0.5612793808 | E43: =Data!F12*Parameters!$I$3/100*UnitConv -> 0.3694246836 | F43: =Data!G12*Parameters!$I$4/100*UnitConv -> 0.1515776001 | G43: =Data!H12*Parameters!$I$5/100*UnitConv -> 0.01295131401 | H43: =Data!I12*Parameters!$I$6/100*UnitConv -> 6.951461678e-06 | I43: =Data!J12*Parameters!$I$7/100*UnitConv -> 0.02509104281 | J43: =Data!K12*Parameters!$I$8/100*UnitConv -> 0.001986145161 | K43: =Data!L12*Parameters!$I$9/100*UnitConv -> 5.116380453e-05 | L43: =Data!M12*Parameters!$I$10/100*UnitConv -> 0.0001904797542 | M43: =Data!N12*Parameters!$I$11/100*UnitConv -> 0 | N43: =Data!O12*Parameters!$I$12/100*UnitConv -> 0 | O43: =Data!P12*Parameters!$I$13/100*UnitConv -> 0 | P43: =Data!Q12*Parameters!$I$14/100*UnitConv -> 0 | Q43: =Data!R12*Parameters!$I$15/100*UnitConv -> 0 | R43: =Data!S12*Parameters!$I$16/100*UnitConv -> 0 | S43: =Data!T12*Parameters!$I$17/100*UnitConv -> 0 | T43: =Data!U12*Parameters!$I$18/100*UnitConv -> 0 | U43: =Data!V12*Parameters!$I$19/100*UnitConv -> 0 | V43: =Data!W12*Parameters!$I$20/100*UnitConv -> 0 | W43: =Data!X12*Parameters!$I$21/100*UnitConv -> 0 | X43: =Data!Y12*Parameters!$I$22/100*UnitConv -> 0 | Y43: =Data!Z12*Parameters!$I$23/100*UnitConv -> 0 | Z43: =Data!AA12*Parameters!$I$24/100*UnitConv -> 0
C44: SO₂ | D44: 0.8724476174 | E44: =Data!F13*Parameters!$I$3/100*UnitConv -> 0.7760033294 | F44: =Data!G13*Parameters!$I$4/100*UnitConv -> 0.003113135769 | G44: =Data!H13*Parameters!$I$5/100*UnitConv -> 0.02440323837 | H44: =Data!I13*Parameters!$I$6/100*UnitConv -> 9.852031341e-06 | I44: =Data!J13*Parameters!$I$7/100*UnitConv -> 0.06740327362 | J44: =Data!K13*Parameters!$I$8/100*UnitConv -> 0.001393406677 | K44: =Data!L13*Parameters!$I$9/100*UnitConv -> 1.339273986e-05 | L44: =Data!M13*Parameters!$I$10/100*UnitConv -> 0.0001079887648 | M44: =Data!N13*Parameters!$I$11/100*UnitConv -> 0 | N44: =Data!O13*Parameters!$I$12/100*UnitConv -> 0 | O44: =Data!P13*Parameters!$I$13/100*UnitConv -> 0 | P44: =Data!Q13*Parameters!$I$14/100*UnitConv -> 0 | Q44: =Data!R13*Parameters!$I$15/100*UnitConv -> 0 | R44: =Data!S13*Parameters!$I$16/100*UnitConv -> 0 | S44: =Data!T13*Parameters!$I$17/100*UnitConv -> 0 | T44: =Data!U13*Parameters!$I$18/100*UnitConv -> 0 | U44: =Data!V13*Parameters!$I$19/100*UnitConv -> 0 | V44: =Data!W13*Parameters!$I$20/100*UnitConv -> 0 | W44: =Data!X13*Parameters!$I$21/100*UnitConv -> 0 | X44: =Data!Y13*Parameters!$I$22/100*UnitConv -> 0 | Y44: =Data!Z13*Parameters!$I$23/100*UnitConv -> 0 | Z44: =Data!AA13*Parameters!$I$24/100*UnitConv -> 0
C45: VOC | D45: 0.06539108394 | E45: =Data!F14*Parameters!$I$3/100*UnitConv -> 0.007010227171 | F45: =Data!G14*Parameters!$I$4/100*UnitConv -> 0.0525685496 | G45: =Data!H14*Parameters!$I$5/100*UnitConv -> 0.001928571552 | H45: =Data!I14*Parameters!$I$6/100*UnitConv -> 5.712615952e-07 | I45: =Data!J14*Parameters!$I$7/100*UnitConv -> 0.00344498256 | J45: =Data!K14*Parameters!$I$8/100*UnitConv -> 0.000361152295 | K45: =Data!L14*Parameters!$I$9/100*UnitConv -> 1.808940618e-06 | L45: =Data!M14*Parameters!$I$10/100*UnitConv -> 7.522055433e-05 | M45: =Data!N14*Parameters!$I$11/100*UnitConv -> 0 | N45: =Data!O14*Parameters!$I$12/100*UnitConv -> 0 | O45: =Data!P14*Parameters!$I$13/100*UnitConv -> 0 | P45: =Data!Q14*Parameters!$I$14/100*UnitConv -> 0 | Q45: =Data!R14*Parameters!$I$15/100*UnitConv -> 0 | R45: =Data!S14*Parameters!$I$16/100*UnitConv -> 0 | S45: =Data!T14*Parameters!$I$17/100*UnitConv -> 0 | T45: =Data!U14*Parameters!$I$18/100*UnitConv -> 0 | U45: =Data!V14*Parameters!$I$19/100*UnitConv -> 0 | V45: =Data!W14*Parameters!$I$20/100*UnitConv -> 0 | W45: =Data!X14*Parameters!$I$21/100*UnitConv -> 0 | X45: =Data!Y14*Parameters!$I$22/100*UnitConv -> 0 | Y45: =Data!Z14*Parameters!$I$23/100*UnitConv -> 0 | Z45: =Data!AA14*Parameters!$I$24/100*UnitConv -> 0
C46: PM | D46: 0.009189420077 | E46: =Data!F15*Parameters!$I$3/100*UnitConv -> 0.007625821489 | F46: =Data!G15*Parameters!$I$4/100*UnitConv -> 0.0005351764841 | G46: =Data!H15*Parameters!$I$5/100*UnitConv -> 0.0001339025025 | H46: =Data!I15*Parameters!$I$6/100*UnitConv -> 5.45403382e-07 | I46: =Data!J15*Parameters!$I$7/100*UnitConv -> 0 | J46: =Data!K15*Parameters!$I$8/100*UnitConv -> 0.0008862502222 | K46: =Data!L15*Parameters!$I$9/100*UnitConv -> 2.770860651e-06 | L46: =Data!M15*Parameters!$I$10/100*UnitConv -> 4.95311537e-06 | M46: =Data!N15*Parameters!$I$11/100*UnitConv -> 0 | N46: =Data!O15*Parameters!$I$12/100*UnitConv -> 0 | O46: =Data!P15*Parameters!$I$13/100*UnitConv -> 0 | P46: =Data!Q15*Parameters!$I$14/100*UnitConv -> 0 | Q46: =Data!R15*Parameters!$I$15/100*UnitConv -> 0 | R46: =Data!S15*Parameters!$I$16/100*UnitConv -> 0 | S46: =Data!T15*Parameters!$I$17/100*UnitConv -> 0 | T46: =Data!U15*Parameters!$I$18/100*UnitConv -> 0 | U46: =Data!V15*Parameters!$I$19/100*UnitConv -> 0 | V46: =Data!W15*Parameters!$I$20/100*UnitConv -> 0 | W46: =Data!X15*Parameters!$I$21/100*UnitConv -> 0 | X46: =Data!Y15*Parameters!$I$22/100*UnitConv -> 0 | Y46: =Data!Z15*Parameters!$I$23/100*UnitConv -> 0 | Z46: =Data!AA15*Parameters!$I$24/100*UnitConv -> 0
B47: ="Solid Waste" & UnitLabel -> Solid Waste (kg/MWh) | C47: Heavy metals to industrial soil | D47: 9.242236707 | E47: =Data!F16*Parameters!$I$3/100*UnitConv -> 0.02655442843 | F47: =Data!G16*Parameters!$I$4/100*UnitConv -> 0.002072566971 | G47: =Data!H16*Parameters!$I$5/100*UnitConv -> 9.211941493 | H47: =Data!I16*Parameters!$I$6/100*UnitConv -> 1.482608944e-06 | I47: =Data!J16*Parameters!$I$7/100*UnitConv -> 3.959309436e-09 | J47: =Data!K16*Parameters!$I$8/100*UnitConv -> 0.001660991319 | K47: =Data!L16*Parameters!$I$9/100*UnitConv -> 2.978429936e-06 | L47: =Data!M16*Parameters!$I$10/100*UnitConv -> 2.761435768e-06 | M47: =Data!N16*Parameters!$I$11/100*UnitConv -> 0 | N47: =Data!O16*Parameters!$I$12/100*UnitConv -> 0 | O47: =Data!P16*Parameters!$I$13/100*UnitConv -> 0 | P47: =Data!Q16*Parameters!$I$14/100*UnitConv -> 0 | Q47: =Data!R16*Parameters!$I$15/100*UnitConv -> 0 | R47: =Data!S16*Parameters!$I$16/100*UnitConv -> 0 | S47: =Data!T16*Parameters!$I$17/100*UnitConv -> 0 | T47: =Data!U16*Parameters!$I$18/100*UnitConv -> 0 | U47: =Data!V16*Parameters!$I$19/100*UnitConv -> 0 | V47: =Data!W16*Parameters!$I$20/100*UnitConv -> 0 | W47: =Data!X16*Parameters!$I$21/100*UnitConv -> 0 | X47: =Data!Y16*Parameters!$I$22/100*UnitConv -> 0 | Y47: =Data!Z16*Parameters!$I$23/100*UnitConv -> 0 | Z47: =Data!AA16*Parameters!$I$24/100*UnitConv -> 0
C48: Heavy metals to agricultural soil | D48: 1.402315422e-06 | E48: =Data!F17*Parameters!$I$3/100*UnitConv -> 2.833618112e-07 | F48: =Data!G17*Parameters!$I$4/100*UnitConv -> 4.650493817e-11 | G48: =Data!H17*Parameters!$I$5/100*UnitConv -> 5.985537472e-07 | H48: =Data!I17*Parameters!$I$6/100*UnitConv -> 2.143311738e-10 | I48: =Data!J17*Parameters!$I$7/100*UnitConv -> 5.050864521e-07 | J48: =Data!K17*Parameters!$I$8/100*UnitConv -> 1.300343049e-08 | K48: =Data!L17*Parameters!$I$9/100*UnitConv -> 1.523008145e-10 | L48: =Data!M17*Parameters!$I$10/100*UnitConv -> 1.896844178e-09 | M48: =Data!N17*Parameters!$I$11/100*UnitConv -> 0 | N48: =Data!O17*Parameters!$I$12/100*UnitConv -> 0 | O48: =Data!P17*Parameters!$I$13/100*UnitConv -> 0 | P48: =Data!Q17*Parameters!$I$14/100*UnitConv -> 0 | Q48: =Data!R17*Parameters!$I$15/100*UnitConv -> 0 | R48: =Data!S17*Parameters!$I$16/100*UnitConv -> 0 | S48: =Data!T17*Parameters!$I$17/100*UnitConv -> 0 | T48: =Data!U17*Parameters!$I$18/100*UnitConv -> 0 | U48: =Data!V17*Parameters!$I$19/100*UnitConv -> 0 | V48: =Data!W17*Parameters!$I$20/100*UnitConv -> 0 | W48: =Data!X17*Parameters!$I$21/100*UnitConv -> 0 | X48: =Data!Y17*Parameters!$I$22/100*UnitConv -> 0 | Y48: =Data!Z17*Parameters!$I$23/100*UnitConv -> 0 | Z48: =Data!AA17*Parameters!$I$24/100*UnitConv -> 0
B49: Water Use (L/MWh) | C49: Withdrawal | D49: 8612.399603 | E49: =Data!F18*Parameters!$I$3/100 -> 1175.026498 | F49: =Data!G18*Parameters!$I$4/100 -> 92.19930667 | G49: =Data!H18*Parameters!$I$5/100 -> 1002.243526 | H49: =Data!I18*Parameters!$I$6/100 -> 5795.037045 | I49: =Data!J18*Parameters!$I$7/100 -> 423.2224614 | J49: =Data!K18*Parameters!$I$8/100 -> 112.8885109 | K49: =Data!L18*Parameters!$I$9/100 -> 5.489031619 | L49: =Data!M18*Parameters!$I$10/100 -> 6.29322377 | M49: =Data!N18*Parameters!$I$11/100 -> 0 | N49: =Data!O18*Parameters!$I$12/100 -> 0 | O49: =Data!P18*Parameters!$I$13/100 -> 0 | P49: =Data!Q18*Parameters!$I$14/100 -> 0 | Q49: =Data!R18*Parameters!$I$15/100 -> 0 | R49: =Data!S18*Parameters!$I$16/100 -> 0 | S49: =Data!T18*Parameters!$I$17/100 -> 0 | T49: =Data!U18*Parameters!$I$18/100 -> 0 | U49: =Data!V18*Parameters!$I$19/100 -> 0 | V49: =Data!W18*Parameters!$I$20/100 -> 0 | W49: =Data!X18*Parameters!$I$21/100 -> 0 | X49: =Data!Y18*Parameters!$I$22/100 -> 0 | Y49: =Data!Z18*Parameters!$I$23/100 -> 0 | Z49: =Data!AA18*Parameters!$I$24/100 -> 0
C50: Discharge | D50: 365.8714616 | E50: =Data!F19*Parameters!$I$3/100 -> 834.3892158 | F50: =Data!G19*Parameters!$I$4/100 -> 47.13029445 | G50: =Data!H19*Parameters!$I$5/100 -> 0 | H50: =Data!I19*Parameters!$I$6/100 -> -6.971799217 | I50: =Data!J19*Parameters!$I$7/100 -> -397.7521072 | J50: =Data!K19*Parameters!$I$8/100 -> -100.1614075 | K50: =Data!L19*Parameters!$I$9/100 -> -5.260819009 | L50: =Data!M19*Parameters!$I$10/100 -> -5.501915667 | M50: =Data!N19*Parameters!$I$11/100 -> 0 | N50: =Data!O19*Parameters!$I$12/100 -> 0 | O50: =Data!P19*Parameters!$I$13/100 -> 0 | P50: =Data!Q19*Parameters!$I$14/100 -> 0 | Q50: =Data!R19*Parameters!$I$15/100 -> 0 | R50: =Data!S19*Parameters!$I$16/100 -> 0 | S50: =Data!T19*Parameters!$I$17/100 -> 0 | T50: =Data!U19*Parameters!$I$18/100 -> 0 | U50: =Data!V19*Parameters!$I$19/100 -> 0 | V50: =Data!W19*Parameters!$I$20/100 -> 0 | W50: =Data!X19*Parameters!$I$21/100 -> 0 | X50: =Data!Y19*Parameters!$I$22/100 -> 0 | Y50: =Data!Z19*Parameters!$I$23/100 -> 0 | Z50: =Data!AA19*Parameters!$I$24/100 -> 0
C51: Consumption | D51: 7215.232044 | E51: =Data!F20*Parameters!$I$3/100 -> 340.6372817 | F51: =Data!G20*Parameters!$I$4/100 -> 45.06901222 | G51: =Data!H20*Parameters!$I$5/100 -> 1002.243526 | H51: =Data!I20*Parameters!$I$6/100 -> 5788.065246 | I51: =Data!J20*Parameters!$I$7/100 -> 25.47035418 | J51: =Data!K20*Parameters!$I$8/100 -> 12.72710341 | K51: =Data!L20*Parameters!$I$9/100 -> 0.22821261 | L51: =Data!M20*Parameters!$I$10/100 -> 0.791308103 | M51: =Data!N20*Parameters!$I$11/100 -> 0 | N51: =Data!O20*Parameters!$I$12/100 -> 0 | O51: =Data!P20*Parameters!$I$13/100 -> 0 | P51: =Data!Q20*Parameters!$I$14/100 -> 0 | Q51: =Data!R20*Parameters!$I$15/100 -> 0 | R51: =Data!S20*Parameters!$I$16/100 -> 0 | S51: =Data!T20*Parameters!$I$17/100 -> 0 | T51: =Data!U20*Parameters!$I$18/100 -> 0 | U51: =Data!V20*Parameters!$I$19/100 -> 0 | V51: =Data!W20*Parameters!$I$20/100 -> 0 | W51: =Data!X20*Parameters!$I$21/100 -> 0 | X51: =Data!Y20*Parameters!$I$22/100 -> 0 | Y51: =Data!Z20*Parameters!$I$23/100 -> 0 | Z51: =Data!AA20*Parameters!$I$24/100 -> 0
B52: ="Water Quality" & UnitLabel -> Water Quality (kg/MWh) | C52: Aluminum | D52: 0.0001031739856 | E52: =Data!F21*Parameters!$I$3/100*UnitConv -> 8.7991286e-05 | F52: =Data!G21*Parameters!$I$4/100*UnitConv -> 1.376631317e-05 | G52: =Data!H21*Parameters!$I$5/100*UnitConv -> 1.378217852e-06 | H52: =Data!I21*Parameters!$I$6/100*UnitConv -> 3.195280652e-11 | I52: =Data!J21*Parameters!$I$7/100*UnitConv -> 0 | J52: =Data!K21*Parameters!$I$8/100*UnitConv -> 3.674616546e-08 | K52: =Data!L21*Parameters!$I$9/100*UnitConv -> 6.409767433e-11 | L52: =Data!M21*Parameters!$I$10/100*UnitConv -> 1.326401842e-09 | M52: =Data!N21*Parameters!$I$11/100*UnitConv -> 0 | N52: =Data!O21*Parameters!$I$12/100*UnitConv -> 0 | O52: =Data!P21*Parameters!$I$13/100*UnitConv -> 0 | P52: =Data!Q21*Parameters!$I$14/100*UnitConv -> 0 | Q52: =Data!R21*Parameters!$I$15/100*UnitConv -> 0 | R52: =Data!S21*Parameters!$I$16/100*UnitConv -> 0 | S52: =Data!T21*Parameters!$I$17/100*UnitConv -> 0 | T52: =Data!U21*Parameters!$I$18/100*UnitConv -> 0 | U52: =Data!V21*Parameters!$I$19/100*UnitConv -> 0 | V52: =Data!W21*Parameters!$I$20/100*UnitConv -> 0 | W52: =Data!X21*Parameters!$I$21/100*UnitConv -> 0 | X52: =Data!Y21*Parameters!$I$22/100*UnitConv -> 0 | Y52: =Data!Z21*Parameters!$I$23/100*UnitConv -> 0 | Z52: =Data!AA21*Parameters!$I$24/100*UnitConv -> 0
C53: Arsenic (+V) | D53: 0.001046305636 | E53: =Data!F22*Parameters!$I$3/100*UnitConv -> 3.086065214e-06 | F53: =Data!G22*Parameters!$I$4/100*UnitConv -> 8.670261287e-07 | G53: =Data!H22*Parameters!$I$5/100*UnitConv -> 0.001039415293 | H53: =Data!I22*Parameters!$I$6/100*UnitConv -> 4.41201517e-10 | I53: =Data!J22*Parameters!$I$7/100*UnitConv -> 1.210429141e-06 | J53: =Data!K22*Parameters!$I$8/100*UnitConv -> 1.705984715e-06 | K53: =Data!L22*Parameters!$I$9/100*UnitConv -> 6.897101237e-09 | L53: =Data!M22*Parameters!$I$10/100*UnitConv -> 1.34990609e-08 | M53: =Data!N22*Parameters!$I$11/100*UnitConv -> 0 | N53: =Data!O22*Parameters!$I$12/100*UnitConv -> 0 | O53: =Data!P22*Parameters!$I$13/100*UnitConv -> 0 | P53: =Data!Q22*Parameters!$I$14/100*UnitConv -> 0 | Q53: =Data!R22*Parameters!$I$15/100*UnitConv -> 0 | R53: =Data!S22*Parameters!$I$16/100*UnitConv -> 0 | S53: =Data!T22*Parameters!$I$17/100*UnitConv -> 0 | T53: =Data!U22*Parameters!$I$18/100*UnitConv -> 0 | U53: =Data!V22*Parameters!$I$19/100*UnitConv -> 0 | V53: =Data!W22*Parameters!$I$20/100*UnitConv -> 0 | W53: =Data!X22*Parameters!$I$21/100*UnitConv -> 0 | X53: =Data!Y22*Parameters!$I$22/100*UnitConv -> 0 | Y53: =Data!Z22*Parameters!$I$23/100*UnitConv -> 0 | Z53: =Data!AA22*Parameters!$I$24/100*UnitConv -> 0
C54: Copper (+II) | D54: 0.001248351248 | E54: =Data!F23*Parameters!$I$3/100*UnitConv -> 8.642078987e-06 | F54: =Data!G23*Parameters!$I$4/100*UnitConv -> 1.133790549e-06 | G54: =Data!H23*Parameters!$I$5/100*UnitConv -> 0.001232580496 | H54: =Data!I23*Parameters!$I$6/100*UnitConv -> 6.046874487e-10 | I54: =Data!J23*Parameters!$I$7/100*UnitConv -> 3.706646135e-06 | J54: =Data!K23*Parameters!$I$8/100*UnitConv -> 2.252494444e-06 | K54: =Data!L23*Parameters!$I$9/100*UnitConv -> 9.952887002e-09 | L54: =Data!M23*Parameters!$I$10/100*UnitConv -> 2.518385069e-08 | M54: =Data!N23*Parameters!$I$11/100*UnitConv -> 0 | N54: =Data!O23*Parameters!$I$12/100*UnitConv -> 0 | O54: =Data!P23*Parameters!$I$13/100*UnitConv -> 0 | P54: =Data!Q23*Parameters!$I$14/100*UnitConv -> 0 | Q54: =Data!R23*Parameters!$I$15/100*UnitConv -> 0 | R54: =Data!S23*Parameters!$I$16/100*UnitConv -> 0 | S54: =Data!T23*Parameters!$I$17/100*UnitConv -> 0 | T54: =Data!U23*Parameters!$I$18/100*UnitConv -> 0 | U54: =Data!V23*Parameters!$I$19/100*UnitConv -> 0 | V54: =Data!W23*Parameters!$I$20/100*UnitConv -> 0 | W54: =Data!X23*Parameters!$I$21/100*UnitConv -> 0 | X54: =Data!Y23*Parameters!$I$22/100*UnitConv -> 0 | Y54: =Data!Z23*Parameters!$I$23/100*UnitConv -> 0 | Z54: =Data!AA23*Parameters!$I$24/100*UnitConv -> 0
C55: Iron | D55: 0.01748314121 | E55: =Data!F24*Parameters!$I$3/100*UnitConv -> 9.516979515e-05 | F55: =Data!G24*Parameters!$I$4/100*UnitConv -> 6.160225315e-05 | G55: =Data!H24*Parameters!$I$5/100*UnitConv -> 0.01717131941 | H55: =Data!I24*Parameters!$I$6/100*UnitConv -> 3.667949179e-07 | I55: =Data!J24*Parameters!$I$7/100*UnitConv -> 2.819404405e-05 | J55: =Data!K24*Parameters!$I$8/100*UnitConv -> 0.000123746928 | K55: =Data!L24*Parameters!$I$9/100*UnitConv -> 7.921002363e-07 | L55: =Data!M24*Parameters!$I$10/100*UnitConv -> 1.949883945e-06 | M55: =Data!N24*Parameters!$I$11/100*UnitConv -> 0 | N55: =Data!O24*Parameters!$I$12/100*UnitConv -> 0 | O55: =Data!P24*Parameters!$I$13/100*UnitConv -> 0 | P55: =Data!Q24*Parameters!$I$14/100*UnitConv -> 0 | Q55: =Data!R24*Parameters!$I$15/100*UnitConv -> 0 | R55: =Data!S24*Parameters!$I$16/100*UnitConv -> 0 | S55: =Data!T24*Parameters!$I$17/100*UnitConv -> 0 | T55: =Data!U24*Parameters!$I$18/100*UnitConv -> 0 | U55: =Data!V24*Parameters!$I$19/100*UnitConv -> 0 | V55: =Data!W24*Parameters!$I$20/100*UnitConv -> 0 | W55: =Data!X24*Parameters!$I$21/100*UnitConv -> 0 | X55: =Data!Y24*Parameters!$I$22/100*UnitConv -> 0 | Y55: =Data!Z24*Parameters!$I$23/100*UnitConv -> 0 | Z55: =Data!AA24*Parameters!$I$24/100*UnitConv -> 0
C56: Lead (+II) | D56: 1.028885444e-05 | E56: =Data!F25*Parameters!$I$3/100*UnitConv -> 3.705445889e-07 | F56: =Data!G25*Parameters!$I$4/100*UnitConv -> 1.459402996e-06 | G56: =Data!H25*Parameters!$I$5/100*UnitConv -> 7.78681157e-06 | H56: =Data!I25*Parameters!$I$6/100*UnitConv -> 1.764531866e-10 | I56: =Data!J25*Parameters!$I$7/100*UnitConv -> 8.207122994e-07 | J56: =Data!K25*Parameters!$I$8/100*UnitConv -> -2.173410599e-07 | K56: =Data!L25*Parameters!$I$9/100*UnitConv -> 2.130948223e-08 | L56: =Data!M25*Parameters!$I$10/100*UnitConv -> 4.723810629e-08 | M56: =Data!N25*Parameters!$I$11/100*UnitConv -> 0 | N56: =Data!O25*Parameters!$I$12/100*UnitConv -> 0 | O56: =Data!P25*Parameters!$I$13/100*UnitConv -> 0 | P56: =Data!Q25*Parameters!$I$14/100*UnitConv -> 0 | Q56: =Data!R25*Parameters!$I$15/100*UnitConv -> 0 | R56: =Data!S25*Parameters!$I$16/100*UnitConv -> 0 | S56: =Data!T25*Parameters!$I$17/100*UnitConv -> 0 | T56: =Data!U25*Parameters!$I$18/100*UnitConv -> 0 | U56: =Data!V25*Parameters!$I$19/100*UnitConv -> 0 | V56: =Data!W25*Parameters!$I$20/100*UnitConv -> 0 | W56: =Data!X25*Parameters!$I$21/100*UnitConv -> 0 | X56: =Data!Y25*Parameters!$I$22/100*UnitConv -> 0 | Y56: =Data!Z25*Parameters!$I$23/100*UnitConv -> 0 | Z56: =Data!AA25*Parameters!$I$24/100*UnitConv -> 0
C57: Manganese (+II) | D57: 0.004512411756 | E57: =Data!F26*Parameters!$I$3/100*UnitConv -> 0.0004398691506 | F57: =Data!G26*Parameters!$I$4/100*UnitConv -> 0.003950254684 | G57: =Data!H26*Parameters!$I$5/100*UnitConv -> 7.003533439e-05 | H57: =Data!I26*Parameters!$I$6/100*UnitConv -> 3.483745967e-07 | I57: =Data!J26*Parameters!$I$7/100*UnitConv -> 3.704253205e-05 | J57: =Data!K26*Parameters!$I$8/100*UnitConv -> 1.38746445e-05 | K57: =Data!L26*Parameters!$I$9/100*UnitConv -> 2.518457239e-07 | L57: =Data!M26*Parameters!$I$10/100*UnitConv -> 7.351903327e-07 | M57: =Data!N26*Parameters!$I$11/100*UnitConv -> 0 | N57: =Data!O26*Parameters!$I$12/100*UnitConv -> 0 | O57: =Data!P26*Parameters!$I$13/100*UnitConv -> 0 | P57: =Data!Q26*Parameters!$I$14/100*UnitConv -> 0 | Q57: =Data!R26*Parameters!$I$15/100*UnitConv -> 0 | R57: =Data!S26*Parameters!$I$16/100*UnitConv -> 0 | S57: =Data!T26*Parameters!$I$17/100*UnitConv -> 0 | T57: =Data!U26*Parameters!$I$18/100*UnitConv -> 0 | U57: =Data!V26*Parameters!$I$19/100*UnitConv -> 0 | V57: =Data!W26*Parameters!$I$20/100*UnitConv -> 0 | W57: =Data!X26*Parameters!$I$21/100*UnitConv -> 0 | X57: =Data!Y26*Parameters!$I$22/100*UnitConv -> 0 | Y57: =Data!Z26*Parameters!$I$23/100*UnitConv -> 0 | Z57: =Data!AA26*Parameters!$I$24/100*UnitConv -> 0
C58: Nickel (+II) | D58: 0.09796301619 | E58: =Data!F27*Parameters!$I$3/100*UnitConv -> 0.0002989756082 | F58: =Data!G27*Parameters!$I$4/100*UnitConv -> 3.244652015e-05 | G58: =Data!H27*Parameters!$I$5/100*UnitConv -> 0.09757725789 | H58: =Data!I27*Parameters!$I$6/100*UnitConv -> 1.601379867e-08 | I58: =Data!J27*Parameters!$I$7/100*UnitConv -> 1.187575354e-06 | J58: =Data!K27*Parameters!$I$8/100*UnitConv -> 5.259946907e-05 | K58: =Data!L27*Parameters!$I$9/100*UnitConv -> 1.954553068e-07 | L58: =Data!M27*Parameters!$I$10/100*UnitConv -> 3.376493545e-07 | M58: =Data!N27*Parameters!$I$11/100*UnitConv -> 0 | N58: =Data!O27*Parameters!$I$12/100*UnitConv -> 0 | O58: =Data!P27*Parameters!$I$13/100*UnitConv -> 0 | P58: =Data!Q27*Parameters!$I$14/100*UnitConv -> 0 | Q58: =Data!R27*Parameters!$I$15/100*UnitConv -> 0 | R58: =Data!S27*Parameters!$I$16/100*UnitConv -> 0 | S58: =Data!T27*Parameters!$I$17/100*UnitConv -> 0 | T58: =Data!U27*Parameters!$I$18/100*UnitConv -> 0 | U58: =Data!V27*Parameters!$I$19/100*UnitConv -> 0 | V58: =Data!W27*Parameters!$I$20/100*UnitConv -> 0 | W58: =Data!X27*Parameters!$I$21/100*UnitConv -> 0 | X58: =Data!Y27*Parameters!$I$22/100*UnitConv -> 0 | Y58: =Data!Z27*Parameters!$I$23/100*UnitConv -> 0 | Z58: =Data!AA27*Parameters!$I$24/100*UnitConv -> 0
C59: Strontium | D59: 0.0003914232767 | E59: =Data!F28*Parameters!$I$3/100*UnitConv -> 0.0003774441249 | F59: =Data!G28*Parameters!$I$4/100*UnitConv -> 4.51647409e-08 | G59: =Data!H28*Parameters!$I$5/100*UnitConv -> 9.812313043e-06 | H59: =Data!I28*Parameters!$I$6/100*UnitConv -> 4.43408361e-09 | I59: =Data!J28*Parameters!$I$7/100*UnitConv -> 3.394086558e-06 | J59: =Data!K28*Parameters!$I$8/100*UnitConv -> 7.043952379e-07 | K59: =Data!L28*Parameters!$I$9/100*UnitConv -> 3.265194176e-09 | L59: =Data!M28*Parameters!$I$10/100*UnitConv -> 1.549291445e-08 | M59: =Data!N28*Parameters!$I$11/100*UnitConv -> 0 | N59: =Data!O28*Parameters!$I$12/100*UnitConv -> 0 | O59: =Data!P28*Parameters!$I$13/100*UnitConv -> 0 | P59: =Data!Q28*Parameters!$I$14/100*UnitConv -> 0 | Q59: =Data!R28*Parameters!$I$15/100*UnitConv -> 0 | R59: =Data!S28*Parameters!$I$16/100*UnitConv -> 0 | S59: =Data!T28*Parameters!$I$17/100*UnitConv -> 0 | T59: =Data!U28*Parameters!$I$18/100*UnitConv -> 0 | U59: =Data!V28*Parameters!$I$19/100*UnitConv -> 0 | V59: =Data!W28*Parameters!$I$20/100*UnitConv -> 0 | W59: =Data!X28*Parameters!$I$21/100*UnitConv -> 0 | X59: =Data!Y28*Parameters!$I$22/100*UnitConv -> 0 | Y59: =Data!Z28*Parameters!$I$23/100*UnitConv -> 0 | Z59: =Data!AA28*Parameters!$I$24/100*UnitConv -> 0
C60: Zinc (+II) | D60: 0.01305987986 | E60: =Data!F29*Parameters!$I$3/100*UnitConv -> 5.554040363e-05 | F60: =Data!G29*Parameters!$I$4/100*UnitConv -> 2.405246736e-05 | G60: =Data!H29*Parameters!$I$5/100*UnitConv -> 0.01291158607 | H60: =Data!I29*Parameters!$I$6/100*UnitConv -> 4.616998986e-09 | I60: =Data!J29*Parameters!$I$7/100*UnitConv -> 4.860552212e-07 | J60: =Data!K29*Parameters!$I$8/100*UnitConv -> 6.737344547e-05 | K60: =Data!L29*Parameters!$I$9/100*UnitConv -> 2.929091369e-07 | L60: =Data!M29*Parameters!$I$10/100*UnitConv -> 5.438892164e-07 | M60: =Data!N29*Parameters!$I$11/100*UnitConv -> 0 | N60: =Data!O29*Parameters!$I$12/100*UnitConv -> 0 | O60: =Data!P29*Parameters!$I$13/100*UnitConv -> 0 | P60: =Data!Q29*Parameters!$I$14/100*UnitConv -> 0 | Q60: =Data!R29*Parameters!$I$15/100*UnitConv -> 0 | R60: =Data!S29*Parameters!$I$16/100*UnitConv -> 0 | S60: =Data!T29*Parameters!$I$17/100*UnitConv -> 0 | T60: =Data!U29*Parameters!$I$18/100*UnitConv -> 0 | U60: =Data!V29*Parameters!$I$19/100*UnitConv -> 0 | V60: =Data!W29*Parameters!$I$20/100*UnitConv -> 0 | W60: =Data!X29*Parameters!$I$21/100*UnitConv -> 0 | X60: =Data!Y29*Parameters!$I$22/100*UnitConv -> 0 | Y60: =Data!Z29*Parameters!$I$23/100*UnitConv -> 0 | Z60: =Data!AA29*Parameters!$I$24/100*UnitConv -> 0
C61: Ammonium/ammonia | D61: 0.2263302348 | E61: =Data!F30*Parameters!$I$3/100*UnitConv -> 0.0007887863049 | F61: =Data!G30*Parameters!$I$4/100*UnitConv -> 5.120026292e-05 | G61: =Data!H30*Parameters!$I$5/100*UnitConv -> 0.225032252 | H61: =Data!I30*Parameters!$I$6/100*UnitConv -> 4.377979638e-08 | I61: =Data!J30*Parameters!$I$7/100*UnitConv -> 4.418708457e-06 | J61: =Data!K30*Parameters!$I$8/100*UnitConv -> 0.0004532621305 | K61: =Data!L30*Parameters!$I$9/100*UnitConv -> 7.933662387e-08 | L61: =Data!M30*Parameters!$I$10/100*UnitConv -> 1.922235566e-07 | M61: =Data!N30*Parameters!$I$11/100*UnitConv -> 0 | N61: =Data!O30*Parameters!$I$12/100*UnitConv -> 0 | O61: =Data!P30*Parameters!$I$13/100*UnitConv -> 0 | P61: =Data!Q30*Parameters!$I$14/100*UnitConv -> 0 | Q61: =Data!R30*Parameters!$I$15/100*UnitConv -> 0 | R61: =Data!S30*Parameters!$I$16/100*UnitConv -> 0 | S61: =Data!T30*Parameters!$I$17/100*UnitConv -> 0 | T61: =Data!U30*Parameters!$I$18/100*UnitConv -> 0 | U61: =Data!V30*Parameters!$I$19/100*UnitConv -> 0 | V61: =Data!W30*Parameters!$I$20/100*UnitConv -> 0 | W61: =Data!X30*Parameters!$I$21/100*UnitConv -> 0 | X61: =Data!Y30*Parameters!$I$22/100*UnitConv -> 0 | Y61: =Data!Z30*Parameters!$I$23/100*UnitConv -> 0 | Z61: =Data!AA30*Parameters!$I$24/100*UnitConv -> 0
C62: Hydrogen chloride | D62: 1.258630099e-09 | E62: =Data!F31*Parameters!$I$3/100*UnitConv -> 1.515185071e-10 | F62: =Data!G31*Parameters!$I$4/100*UnitConv -> 5.021753959e-12 | G62: =Data!H31*Parameters!$I$5/100*UnitConv -> 6.5408683e-10 | H62: =Data!I31*Parameters!$I$6/100*UnitConv -> 8.352911196e-13 | I62: =Data!J31*Parameters!$I$7/100*UnitConv -> 3.834570433e-10 | J62: =Data!K31*Parameters!$I$8/100*UnitConv -> 6.042514789e-11 | K62: =Data!L31*Parameters!$I$9/100*UnitConv -> 6.550749971e-13 | L62: =Data!M31*Parameters!$I$10/100*UnitConv -> 2.630450863e-12 | M62: =Data!N31*Parameters!$I$11/100*UnitConv -> 0 | N62: =Data!O31*Parameters!$I$12/100*UnitConv -> 0 | O62: =Data!P31*Parameters!$I$13/100*UnitConv -> 0 | P62: =Data!Q31*Parameters!$I$14/100*UnitConv -> 0 | Q62: =Data!R31*Parameters!$I$15/100*UnitConv -> 0 | R62: =Data!S31*Parameters!$I$16/100*UnitConv -> 0 | S62: =Data!T31*Parameters!$I$17/100*UnitConv -> 0 | T62: =Data!U31*Parameters!$I$18/100*UnitConv -> 0 | U62: =Data!V31*Parameters!$I$19/100*UnitConv -> 0 | V62: =Data!W31*Parameters!$I$20/100*UnitConv -> 0 | W62: =Data!X31*Parameters!$I$21/100*UnitConv -> 0 | X62: =Data!Y31*Parameters!$I$22/100*UnitConv -> 0 | Y62: =Data!Z31*Parameters!$I$23/100*UnitConv -> 0 | Z62: =Data!AA31*Parameters!$I$24/100*UnitConv -> 0
C63: Nitrogen (as total N) | D63: 0.0002153906346 | E63: =Data!F32*Parameters!$I$3/100*UnitConv -> 1.03335484e-06 | F63: =Data!G32*Parameters!$I$4/100*UnitConv -> 0.0002340672425 | G63: =Data!H32*Parameters!$I$5/100*UnitConv -> 3.310727137e-06 | H63: =Data!I32*Parameters!$I$6/100*UnitConv -> 1.273492504e-10 | I63: =Data!J32*Parameters!$I$7/100*UnitConv -> 3.742758557e-09 | J63: =Data!K32*Parameters!$I$8/100*UnitConv -> -2.304936054e-05 | K63: =Data!L32*Parameters!$I$9/100*UnitConv -> 2.356812625e-10 | L63: =Data!M32*Parameters!$I$10/100*UnitConv -> 2.456488533e-08 | M63: =Data!N32*Parameters!$I$11/100*UnitConv -> 0 | N63: =Data!O32*Parameters!$I$12/100*UnitConv -> 0 | O63: =Data!P32*Parameters!$I$13/100*UnitConv -> 0 | P63: =Data!Q32*Parameters!$I$14/100*UnitConv -> 0 | Q63: =Data!R32*Parameters!$I$15/100*UnitConv -> 0 | R63: =Data!S32*Parameters!$I$16/100*UnitConv -> 0 | S63: =Data!T32*Parameters!$I$17/100*UnitConv -> 0 | T63: =Data!U32*Parameters!$I$18/100*UnitConv -> 0 | U63: =Data!V32*Parameters!$I$19/100*UnitConv -> 0 | V63: =Data!W32*Parameters!$I$20/100*UnitConv -> 0 | W63: =Data!X32*Parameters!$I$21/100*UnitConv -> 0 | X63: =Data!Y32*Parameters!$I$22/100*UnitConv -> 0 | Y63: =Data!Z32*Parameters!$I$23/100*UnitConv -> 0 | Z63: =Data!AA32*Parameters!$I$24/100*UnitConv -> 0
C64: Phosphate | D64: 9.596687715e-06 | E64: =Data!F33*Parameters!$I$3/100*UnitConv -> 1.168523483e-07 | F64: =Data!G33*Parameters!$I$4/100*UnitConv -> 2.14549701e-09 | G64: =Data!H33*Parameters!$I$5/100*UnitConv -> 4.931892846e-07 | H64: =Data!I33*Parameters!$I$6/100*UnitConv -> 6.348857048e-10 | I64: =Data!J33*Parameters!$I$7/100*UnitConv -> 8.246110592e-06 | J64: =Data!K33*Parameters!$I$8/100*UnitConv -> 7.271417933e-07 | K64: =Data!L33*Parameters!$I$9/100*UnitConv -> 4.691634192e-10 | L64: =Data!M33*Parameters!$I$10/100*UnitConv -> 1.014414996e-08 | M64: =Data!N33*Parameters!$I$11/100*UnitConv -> 0 | N64: =Data!O33*Parameters!$I$12/100*UnitConv -> 0 | O64: =Data!P33*Parameters!$I$13/100*UnitConv -> 0 | P64: =Data!Q33*Parameters!$I$14/100*UnitConv -> 0 | Q64: =Data!R33*Parameters!$I$15/100*UnitConv -> 0 | R64: =Data!S33*Parameters!$I$16/100*UnitConv -> 0 | S64: =Data!T33*Parameters!$I$17/100*UnitConv -> 0 | T64: =Data!U33*Parameters!$I$18/100*UnitConv -> 0 | U64: =Data!V33*Parameters!$I$19/100*UnitConv -> 0 | V64: =Data!W33*Parameters!$I$20/100*UnitConv -> 0 | W64: =Data!X33*Parameters!$I$21/100*UnitConv -> 0 | X64: =Data!Y33*Parameters!$I$22/100*UnitConv -> 0 | Y64: =Data!Z33*Parameters!$I$23/100*UnitConv -> 0 | Z64: =Data!AA33*Parameters!$I$24/100*UnitConv -> 0
C65: Phosphorus | D65: 0.0004042083588 | E65: =Data!F34*Parameters!$I$3/100*UnitConv -> 3.38176012e-05 | F65: =Data!G34*Parameters!$I$4/100*UnitConv -> 1.638722409e-05 | G65: =Data!H34*Parameters!$I$5/100*UnitConv -> 0.0003093085522 | H65: =Data!I34*Parameters!$I$6/100*UnitConv -> 2.413756315e-09 | I65: =Data!J34*Parameters!$I$7/100*UnitConv -> 3.150300791e-08 | J65: =Data!K34*Parameters!$I$8/100*UnitConv -> 4.395764833e-05 | K65: =Data!L34*Parameters!$I$9/100*UnitConv -> 2.094299809e-07 | L65: =Data!M34*Parameters!$I$10/100*UnitConv -> 4.939862224e-07 | M65: =Data!N34*Parameters!$I$11/100*UnitConv -> 0 | N65: =Data!O34*Parameters!$I$12/100*UnitConv -> 0 | O65: =Data!P34*Parameters!$I$13/100*UnitConv -> 0 | P65: =Data!Q34*Parameters!$I$14/100*UnitConv -> 0 | Q65: =Data!R34*Parameters!$I$15/100*UnitConv -> 0 | R65: =Data!S34*Parameters!$I$16/100*UnitConv -> 0 | S65: =Data!T34*Parameters!$I$17/100*UnitConv -> 0 | T65: =Data!U34*Parameters!$I$18/100*UnitConv -> 0 | U65: =Data!V34*Parameters!$I$19/100*UnitConv -> 0 | V65: =Data!W34*Parameters!$I$20/100*UnitConv -> 0 | W65: =Data!X34*Parameters!$I$21/100*UnitConv -> 0 | X65: =Data!Y34*Parameters!$I$22/100*UnitConv -> 0 | Y65: =Data!Z34*Parameters!$I$23/100*UnitConv -> 0 | Z65: =Data!AA34*Parameters!$I$24/100*UnitConv -> 0
B66: ="Resource Energy (MJ/MWh)" -> Resource Energy (MJ/MWh) | C66: Crude oil | D66: 174.4977798 | E66: =Data!F35*Parameters!$I$3/100 -> 32.21984352 | F66: =Data!G35*Parameters!$I$4/100 -> 1.156717546 | G66: =Data!H35*Parameters!$I$5/100 -> 9.100110135 | H66: =Data!I35*Parameters!$I$6/100 -> 0.005679204539 | I66: =Data!J35*Parameters!$I$7/100 -> 127.6502598 | J66: =Data!K35*Parameters!$I$8/100 -> 4.158992448 | K66: =Data!L35*Parameters!$I$9/100 -> 0.02556756203 | L66: =Data!M35*Parameters!$I$10/100 -> 0.1806096463 | M66: =Data!N35*Parameters!$I$11/100 -> 0 | N66: =Data!O35*Parameters!$I$12/100 -> 0 | O66: =Data!P35*Parameters!$I$13/100 -> 0 | P66: =Data!Q35*Parameters!$I$14/100 -> 0 | Q66: =Data!R35*Parameters!$I$15/100 -> 0 | R66: =Data!S35*Parameters!$I$16/100 -> 0 | S66: =Data!T35*Parameters!$I$17/100 -> 0 | T66: =Data!U35*Parameters!$I$18/100 -> 0 | U66: =Data!V35*Parameters!$I$19/100 -> 0 | V66: =Data!W35*Parameters!$I$20/100 -> 0 | W66: =Data!X35*Parameters!$I$21/100 -> 0 | X66: =Data!Y35*Parameters!$I$22/100 -> 0 | Y66: =Data!Z35*Parameters!$I$23/100 -> 0 | Z66: =Data!AA35*Parameters!$I$24/100 -> 0
C67: Hard coal | D67: 4238.586012 | E67: =Data!F36*Parameters!$I$3/100 -> 4173.739342 | F67: =Data!G36*Parameters!$I$4/100 -> 5.169182885 | G67: =Data!H36*Parameters!$I$5/100 -> 55.41025101 | H67: =Data!I36*Parameters!$I$6/100 -> 0.02462102346 | I67: =Data!J36*Parameters!$I$7/100 -> 2.013222264 | J67: =Data!K36*Parameters!$I$8/100 -> 1.99040639 | K67: =Data!L36*Parameters!$I$9/100 -> 0.02933687717 | L67: =Data!M36*Parameters!$I$10/100 -> 0.2096500671 | M67: =Data!N36*Parameters!$I$11/100 -> 0 | N67: =Data!O36*Parameters!$I$12/100 -> 0 | O67: =Data!P36*Parameters!$I$13/100 -> 0 | P67: =Data!Q36*Parameters!$I$14/100 -> 0 | Q67: =Data!R36*Parameters!$I$15/100 -> 0 | R67: =Data!S36*Parameters!$I$16/100 -> 0 | S67: =Data!T36*Parameters!$I$17/100 -> 0 | T67: =Data!U36*Parameters!$I$18/100 -> 0 | U67: =Data!V36*Parameters!$I$19/100 -> 0 | V67: =Data!W36*Parameters!$I$20/100 -> 0 | W67: =Data!X36*Parameters!$I$21/100 -> 0 | X67: =Data!Y36*Parameters!$I$22/100 -> 0 | Y67: =Data!Z36*Parameters!$I$23/100 -> 0 | Z67: =Data!AA36*Parameters!$I$24/100 -> 0
C68: Lignite | D68: 0.4894210516 | E68: =Data!F37*Parameters!$I$3/100 -> 0.1283549083 | F68: =Data!G37*Parameters!$I$4/100 -> 0.001562791875 | G68: =Data!H37*Parameters!$I$5/100 -> 0.102587555 | H68: =Data!I37*Parameters!$I$6/100 -> 0.001829338038 | I68: =Data!J37*Parameters!$I$7/100 -> 0.1622778318 | J68: =Data!K37*Parameters!$I$8/100 -> 0.08829881671 | K68: =Data!L37*Parameters!$I$9/100 -> 0.001323898274 | L68: =Data!M37*Parameters!$I$10/100 -> 0.003185911585 | M68: =Data!N37*Parameters!$I$11/100 -> 0 | N68: =Data!O37*Parameters!$I$12/100 -> 0 | O68: =Data!P37*Parameters!$I$13/100 -> 0 | P68: =Data!Q37*Parameters!$I$14/100 -> 0 | Q68: =Data!R37*Parameters!$I$15/100 -> 0 | R68: =Data!S37*Parameters!$I$16/100 -> 0 | S68: =Data!T37*Parameters!$I$17/100 -> 0 | T68: =Data!U37*Parameters!$I$18/100 -> 0 | U68: =Data!V37*Parameters!$I$19/100 -> 0 | V68: =Data!W37*Parameters!$I$20/100 -> 0 | W68: =Data!X37*Parameters!$I$21/100 -> 0 | X68: =Data!Y37*Parameters!$I$22/100 -> 0 | Y68: =Data!Z37*Parameters!$I$23/100 -> 0 | Z68: =Data!AA37*Parameters!$I$24/100 -> 0
C69: Natural gas | D69: 2295.973955 | E69: =Data!F38*Parameters!$I$3/100 -> 12.07188324 | F69: =Data!G38*Parameters!$I$4/100 -> 2117.723705 | G69: =Data!H38*Parameters!$I$5/100 -> 149.6983101 | H69: =Data!I38*Parameters!$I$6/100 -> 0.006248135586 | I69: =Data!J38*Parameters!$I$7/100 -> 13.63456762 | J69: =Data!K38*Parameters!$I$8/100 -> 2.413380334 | K69: =Data!L38*Parameters!$I$9/100 -> 0.0115015307 | L69: =Data!M38*Parameters!$I$10/100 -> 0.41435981 | M69: =Data!N38*Parameters!$I$11/100 -> 0 | N69: =Data!O38*Parameters!$I$12/100 -> 0 | O69: =Data!P38*Parameters!$I$13/100 -> 0 | P69: =Data!Q38*Parameters!$I$14/100 -> 0 | Q69: =Data!R38*Parameters!$I$15/100 -> 0 | R69: =Data!S38*Parameters!$I$16/100 -> 0 | S69: =Data!T38*Parameters!$I$17/100 -> 0 | T69: =Data!U38*Parameters!$I$18/100 -> 0 | U69: =Data!V38*Parameters!$I$19/100 -> 0 | V69: =Data!W38*Parameters!$I$20/100 -> 0 | W69: =Data!X38*Parameters!$I$21/100 -> 0 | X69: =Data!Y38*Parameters!$I$22/100 -> 0 | Y69: =Data!Z38*Parameters!$I$23/100 -> 0 | Z69: =Data!AA38*Parameters!$I$24/100 -> 0
C70: Uranium | D70: 2.548763791 | E70: =Data!F39*Parameters!$I$3/100 -> 0.5662124791 | F70: =Data!G39*Parameters!$I$4/100 -> 0.009135609041 | G70: =Data!H39*Parameters!$I$5/100 -> 0.9508807132 | H70: =Data!I39*Parameters!$I$6/100 -> 0.003243820977 | I70: =Data!J39*Parameters!$I$7/100 -> 0.7767323662 | J70: =Data!K39*Parameters!$I$8/100 -> 0.2241452765 | K70: =Data!L39*Parameters!$I$9/100 -> 0.002520613403 | L70: =Data!M39*Parameters!$I$10/100 -> 0.01589291275 | M70: =Data!N39*Parameters!$I$11/100 -> 0 | N70: =Data!O39*Parameters!$I$12/100 -> 0 | O70: =Data!P39*Parameters!$I$13/100 -> 0 | P70: =Data!Q39*Parameters!$I$14/100 -> 0 | Q70: =Data!R39*Parameters!$I$15/100 -> 0 | R70: =Data!S39*Parameters!$I$16/100 -> 0 | S70: =Data!T39*Parameters!$I$17/100 -> 0 | T70: =Data!U39*Parameters!$I$18/100 -> 0 | U70: =Data!V39*Parameters!$I$19/100 -> 0 | V70: =Data!W39*Parameters!$I$20/100 -> 0 | W70: =Data!X39*Parameters!$I$21/100 -> 0 | X70: =Data!Y39*Parameters!$I$22/100 -> 0 | Y70: =Data!Z39*Parameters!$I$23/100 -> 0 | Z70: =Data!AA39*Parameters!$I$24/100 -> 0
C71: Total resource energy | D71: 25573.9237 | E71: =Data!F40*Parameters!$I$3/100 -> 4218.725636 | F71: =Data!G40*Parameters!$I$4/100 -> 2124.060304 | G71: =Data!H40*Parameters!$I$5/100 -> 215.2621395 | H71: =Data!I40*Parameters!$I$6/100 -> 0.0416215226 | I71: =Data!J40*Parameters!$I$3/100 -> 5625.245334 | J71: =Data!K40*Parameters!$I$8/100 -> 8.875223264 | K71: =Data!L40*Parameters!$I$9/100 -> 0.07025048157 | L71: =Data!M40*Parameters!$I$10/100 -> 0.8236983479 | M71: =Data!N40*Parameters!$I$11/100 -> 0 | N71: =Data!O40*Parameters!$I$3/100 -> 5255.374546 | O71: =Data!P40*Parameters!$I$3/100 -> 3037.043502 | P71: =Data!Q40*Parameters!$I$14/100 -> 0 | Q71: =Data!R40*Parameters!$I$15/100 -> 0 | R71: =Data!S40*Parameters!$I$3/100 -> 4753.84008 | S71: =Data!T40*Parameters!$I$17/100 -> 0 | T71: =Data!U40*Parameters!$I$3/100 -> 334.5613658 | U71: =Data!V40*Parameters!$I$19/100 -> 0 | V71: =Data!W40*Parameters!$I$20/100 -> 0 | W71: =Data!X40*Parameters!$I$21/100 -> 0 | X71: =Data!Y40*Parameters!$I$22/100 -> 0 | Y71: =Data!Z40*Parameters!$I$23/100 -> 0 | Z71: =Data!AA40*Parameters!$I$24/100 -> 0

Sheet Data
A1: Data is delieverd not busbar | D1: Category (Units) | E1: Material or Energy Flow | F1: Current | N1: New/Future
F2: Fleet Coal | G2: Fleet Natural Gas | H2: Existing Nuclear | I2: Existing Hydro | J2: Petroleum | K2: Onshore Wind | L2: Geothermal | M2: Solar Thermal | N2: SCPC | O2: SCPC/CCS | P2: NGCC | Q2: NGCC/CCS | R2: IGCC | S2: IGCC/CCS | T2: Gen III+ Nuclear | U2: Existing Nuclear w/ Centrifuge Enrich | V2: Gen III+ Nuclear w/ Centrifuge Enrich | W2: Greenfield Hydro | X2: Power Addition Hydro | Y2: Power Upgrade Hydro | Z2: Advanced Onshore Wind | AA2: Offshore Wind
C3: 1 | D3: GHG (kg/MWh) | E3: CO₂ | F3: 1056.303634 | G3: 466.6887465 | H3: 32.27329818 | I3: 18.1918747 | J3: 1124.373642 | K3: 17.89053137 | L3: 231.2598518 | M3: 33.1418046 | N3: 876.7462062 | O3: 138.4197885 | P3: 417.1137934 | Q3: 75.11839061 | R3: 855.3033455 | S3: 118.2716406 | T3: 20.13105564 | U3: 7.276327618 | V3: 5.524671763 | W3: 24.64485845 | X3: 19.41912835 | Y3: 18.75565495 | Z3: 14.75173013 | AA3: 28.03135571
C4: 298 | E4: N₂O | F4: 0.01954084675 | G4: 0.001522642175 | H4: 0.0007426766075 | I4: 7.147303212e-07 | J4: 0.01532171317 | K4: 0.0008486925724 | L4: 4.030167278e-05 | M4: 0.006548508231 | N4: 0.0003073821197 | O4: 0.000412706815 | P4: 0.0006803953523 | Q4: 0.0007975037529 | R4: 0.0002950618269 | S4: 0.0003520235465 | T4: 0.0004409791288 | U4: 0.0001535522354 | V4: 9.673834544e-05 | W4: 4.181703503e-05 | X4: 7.31376637e-06 | Y4: 1.534642023e-06 | Z4: 0.001078819855 | AA4: 0.0009908860553
C5: 25 | E5: CH₄ | F5: 1.601962374 | G5: 1.812872808 | H5: 0.1033248772 | I5: 0.2506224407 | J5: 1.333051107 | K5: 0.0423286681 | L5: 0.428711333 | M5: 0.09397942595 | N5: 2.771733997 | O5: 3.828498208 | P5: 1.838446015 | Q5: 2.154875973 | R5: 3.288637402 | S5: 3.927292666 | T5: 0.06670643051 | U5: 0.07525212136 | V5: 0.05030278481 | W5: 0.2572626685 | X5: 0.2507882417 | Y5: 0.2506670197 | Z5: 0.04011968593 | AA5: 0.04605422016
C6: 22800 | E6: SF₆ | F6: 0.0001446190897 | G6: 0.0001439329064 | H6: 0.00014328 | I6: 0.00014328 | J6: 0.00014328 | K6: 0.00014328 | L6: 0.00014328 | M6: 0.00014328 | N6: 0.000145093584 | O6: 0.0001457535878 | P6: 0.0001435764943 | Q6: 0.0001436199531 | R6: 0.00014328 | S6: 0.00014328 | T6: 0.00014328 | U6: 0.00014328 | V6: 0.00014328 | W6: 0.00014328 | X6: 0.00014328 | Y6: 0.00014328 | Z6: 0.00014328 | AA6: 0.00014328
E7: CO₂e (IPCC 2007 100-yr GWP) | F7: 1105.473181 | G7: 515.7459844 | H7: =SUMPRODUCT(H3:H6,$C$3:$C$6) -> 38.34452174 | I7: 27.72443271 | J7: 1165.532574 | K7: 22.46844246 | L7: 245.256429 | M7: 40.7095297 | N7: 949.4392897 | O7: 237.5784121 | P7: 466.5512457 | Q7: 132.502481 | R7: 940.873993 | S7: 219.8256442 | T7: 25.19691218 | U7: 12.47017322 | V7: 10.07785341 | W7: 34.35567064 | X7: 28.95779789 | Y7: 28.28957177 | Z7: 19.34299459 | AA7: 32.74477926
D8: Other Air (kg/MWh) | E8: Pb | F8: 8.404766777e-06 | G8: 6.939718206e-06 | H8: 2.877029544e-06 | I8: 5.165889005e-07 | J8: 0.0007539130373 | K8: 6.232221717e-05 | L8: 7.959026885e-06 | M8: 3.850496308e-05 | N8: 2.883561784e-05 | O8: 3.333995943e-05 | P8: 4.834313837e-06 | Q8: 5.666387072e-06 | R8: 5.222618085e-06 | S8: 8.049194487e-06 | T8: 1.629843823e-06 | U8: 1.777856903e-06 | V8: 9.875684919e-07 | W8: 4.426414265e-06 | X8: 2.642894019e-06 | Y8: 1.398498383e-06 | Z8: 0.0001278726188 | AA8: 0.0001018399477
E9: Hg | F9: 2.60397766e-05 | G9: 1.350626448e-07 | H9: 1.353593346e-06 | I9: 1.755543564e-09 | J9: 2.596597107e-06 | K9: 2.491867761e-07 | L9: 5.990909302e-08 | M9: 1.114238584e-06 | N9: 5.14126416e-06 | O9: 7.088122456e-06 | P9: 1.62171477e-07 | Q9: 1.900841343e-07 | R9: 2.701691936e-06 | S9: 5.065253359e-06 | T9: 7.96997631e-07 | U9: 6.546478294e-08 | V9: 4.43104117e-08 | W9: 5.497629393e-08 | X9: 1.529619454e-08 | Y9: 2.693512348e-09 | Z9: 2.854589261e-07 | AA9: 6.493439454e-07
E10: NH₃ | F10: 0.0005989657838 | G10: 0.02150833412 | H10: 0.00199849305 | I10: 1.933728573e-07 | J10: 0.003483015292 | K10: 0.000598042074 | L10: 0.4534347613 | M10: 9.866151715e-05 | N10: 0.002310651644 | O10: 0.00319171097 | P10: 0.0191768243 | Q10: 0.02275262794 | R10: 0.0001945509414 | S10: 0.0002322046733 | T10: 0.001170907925 | U10: 0.003193546934 | V10: 0.001869209174 | W10: 2.060431086e-06 | X10: 5.208167533e-07 | Y10: 3.419492122e-07 | Z10: 0.0004182976804 | AA10: 0.0002754769634
E11: CO | F11: 0.1399373137 | G11: 0.0490671263 | H11: 0.03568368636 | I11: 0.0002351954277 | J11: 0.5559196757 | K11: 0.04683067463 | L11: 0.02365274808 | M11: 0.6091305837 | N11: 0.02529742109 | O11: 0.03318558591 | P11: 0.05169038979 | Q11: 0.06058724491 | R11: 0.02646278035 | S11: 0.03135449993 | T11: 0.02508182307 | U11: 0.02616981653 | V11: 0.01952262002 | W11: 0.01248943084 | X11: 0.002436811894 | Y11: 0.0006844151853 | Z11: 0.04775036278 | AA11: 0.1098724232
E12: NOX | F12: 0.9472427785 | G12: 0.545243166 | H12: 0.06607813268 | I12: 8.799318579e-05 | J12: 2.509104281 | K12: 0.04728917049 | L12: 0.01279095113 | M12: 0.09523987712 | N12: 0.3232833065 | O12: 0.4457000689 | P12: 0.4894048427 | Q12: 0.5731425484 | R12: 0.2808392686 | S12: 0.2819299427 | T12: 0.05777165104 | U12: 0.02483967195 | V12: 0.03367493955 | W12: 0.01737696065 | X12: 0.001287058518 | Y12: 0.0002127592801 | Z12: 0.034939085 | AA12: 0.1821299534
E13: SO₂ | F13: 1.989752127 | G13: 0.01119833011 | H13: 0.1245063182 | I13: 0.0001247092575 | J13: 6.740327362 | K13: 0.03317634945 | L13: 0.003348184966 | M13: 0.05399438241 | N13: 0.3949954578 | O13: 0.05216476494 | P13: 0.009089573658 | Q13: 0.01065405441 | R13: 0.03841666594 | S13: 0.05043410245 | T13: 0.076126762 | U13: 0.0164761491 | V13: 0.01300190788 | W13: 0.01144387552 | X13: 0.0005129704676 | Y13: 0.000205663496 | Z13: 0.03616389775 | AA13: 0.04980105111
E14: VOC | F14: 0.01797494147 | G14: 0.1890955022 | H14: 0.009839650775 | I14: 7.231159433e-06 | J14: 0.344498256 | K14: 0.008598864166 | L14: 0.0004522351545 | M14: 0.03761027717 | N14: 0.003325320315 | O14: 0.004483404869 | P14: 0.192662397 | Q14: 0.2258230956 | R14: 0.006228501145 | S14: 0.00736114601 | T14: 0.008237897653 | U14: 0.009589140483 | V14: 0.008091517936 | W14: 0.0005972981965 | X14: 1.590277923e-05 | Y14: 1.116588153e-05 | Z14: 0.007878033296 | AA14: 0.01202559398
E15: PM | F15: 0.01955338843 | G15: 0.001925095267 | H15: 0.0006831760331 | I15: 6.903840278e-06 | J15: 0 | K15: 0.02110119577 | L15: 0.0006927151628 | M15: 0.002476557685 | N15: 0.07067976026 | O15: 0.09716568158 | P15: 0.002169798413 | Q15: 0.002543260137 | R15: 0.04705628317 | S15: 0.02442949331 | T15: 0.001196165857 | U15: 0.0007016321513 | V15: 0.001206950249 | W15: 0.005148800526 | X15: 3.193931184e-05 | Y15: 8.230750739e-06 | Z15: 0.007877646371 | AA15: 0.003581197907
D16: Solid Waste (kg/MWh) | E16: Heavy metals to industrial soil | F16: 0.06808827803 | G16: 0.007455276873 | H16: 46.9997015 | I16: 1.876720182e-05 | J16: 3.959309436e-07 | K16: 0.03954741235 | L16: 0.000744607484 | M16: 0.001380717884 | N16: 0.05512923451 | O16: 0.07569984898 | P16: 0.008152876104 | Q16: 0.009497700931 | R16: 0.05567956636 | S16: 0.06643533847 | T16: 27.46432654 | U16: 47.51500873 | V16: 27.76543404 | W16: 0.01392519565 | X16: 1.878065124e-05 | Y16: 1.877338642e-05 | Z16: 0.03212111801 | AA16: 0.02508441969
E17: Heavy metals to agricultural soil | F17: 7.265687466e-07 | G17: 1.672839503e-10 | H17: 3.053845649e-06 | I17: 2.713052833e-09 | J17: 5.050864521e-05 | K17: 3.096054878e-07 | L17: 3.807520361e-08 | M17: 9.484220889e-07 | N17: 2.145604113e-08 | O17: 2.896557609e-08 | P17: 3.024182041e-09 | Q17: 3.422951133e-09 | R17: 2.132887231e-08 | S17: 2.54007857e-08 | T17: 1.782499365e-06 | U17: 1.207446976e-06 | V17: 7.036003149e-07 | W17: 1.686542689e-08 | X17: 8.627768517e-09 | Y17: 5.396827952e-09 | Z17: 6.224005187e-07 | AA17: 4.551644389e-07
D18: Water Use (L/MWh) | E18: Withdrawal | F18: 3012.888455 | G18: 331.6521823 | H18: 5113.487376 | I18: 73354.89931 | J18: 42322.24614 | K18: 2687.821689 | L18: 1372.257905 | M18: 3146.611885 | N18: 4165.881792 | O18: 6865.1583 | P18: 1278.118148 | Q18: 2318.843794 | R18: 3270.935265 | S18: 4289.049631 | T18: 4577.120018 | U18: 111853.9126 | V18: 4567.452945 | W18: 68278.96909 | X18: 68236.26853 | Y18: 68227.27004 | Z18: 3393.889778 | AA18: 3026.630328
E19: Discharge | F19: 2139.459528 | G19: 169.5334333 | H19: 0 | I19: -88.250623 | J19: -39775.21072 | K19: -2384.795418 | L19: -1315.204752 | M19: -2750.957834 | N19: -2230.185338 | O19: -3371.800871 | P19: -490.7873898 | Q19: -801.9193447 | R19: -397.6352552 | S19: -496.5919464 | T19: -130.0110051 | U19: -106958.1802 | V19: -247.5838684 | W19: -117.9593615 | X19: -97.20309564 | Y19: -88.93822455 | Z19: -3085.962684 | AA19: -2858.03058
E20: Consumption | F20: 873.4289274 | G20: 162.118749 | H20: =H18+H19 -> 5113.487376 | I20: 73266.64868 | J20: 2547.035418 | K20: 303.0262717 | L20: 57.05315249 | M20: 395.6540515 | N20: 1935.696454 | O20: 3493.35743 | P20: 787.3307581 | Q20: 1516.924449 | R20: 2873.30001 | S20: 3792.457684 | T20: 4447.109013 | U20: 4895.732387 | V20: 4319.869076 | W20: 68161.00973 | X20: 68139.06543 | Y20: 68138.33182 | Z20: 307.9270935 | AA20: 168.5997478
D21: Water Quality (kg/MWh) | E21: Aluminum | F21: 0.000225618682 | G21: 4.951911211e-05 | H21: 7.031723737e-06 | I21: 4.044659053e-10 | J21: 0 | K21: 8.749087013e-07 | L21: 1.602441858e-08 | M21: 6.632009209e-07 | N21: 6.63010404e-06 | O21: 9.01784391e-06 | P21: 7.04503693e-07 | Q21: 8.25761577e-07 | R21: 1.474924826e-06 | S21: 1.746704219e-06 | T21: 5.617045781e-06 | U21: 7.434777467e-06 | V21: 5.85256062e-06 | W21: 3.001790613e-07 | X21: 4.044691411e-10 | Y21: 4.044691411e-10 | Z21: 7.11272774e-07 | AA21: 1.236171547e-06
E22: Arsenic (+V) | F22: 7.912987727e-06 | G22: 3.118799024e-06 | H22: 0.005303139252 | I22: 5.584829329e-09 | J22: 0.0001210429141 | K22: 4.061868369e-05 | L22: 1.724275309e-06 | M22: 6.749530448e-06 | N22: 1.353659088e-05 | O22: 1.858393294e-05 | P22: 3.263462468e-06 | Q22: 3.825163645e-06 | R22: 3.033939012e-05 | S22: 3.621994755e-05 | T22: 1.230874264e-05 | U22: 0.005302525079 | V22: 1.194986533e-05 | W22: 3.265158339e-06 | X22: 7.863048173e-09 | Y22: 6.618580521e-09 | Z22: 2.381914768e-05 | AA22: 6.419822299e-05
E23: Copper (+II) | F23: 2.215917689e-05 | G23: 4.078383269e-06 | H23: 0.006288676 | I23: 7.654271503e-09 | J23: 0.0003706646135 | K23: 5.363082009e-05 | L23: 2.488221751e-06 | M23: 1.259192534e-05 | N23: 1.649467036e-05 | O23: 2.264776871e-05 | P23: 4.257940129e-06 | Q23: 4.990808978e-06 | R23: 4.092956628e-05 | S23: 4.886349188e-05 | T23: 5.753652126e-05 | U23: 0.006288555282 | V23: 5.74659822e-05 | W23: 3.894566177e-06 | X23: 1.173119566e-08 | Y23: 9.504182421e-09 | Z23: 3.13430285e-05 | AA23: 9.152468896e-05
E24: Iron | F24: 0.0002440251158 | G24: 0.0002215908387 | H24: 0.0876087725 | I24: 4.642973644e-06 | J24: 0.002819404405 | K24: 0.002946355428 | L24: 0.0001980250591 | M24: 0.0009749419727 | N24: 0.0003381213302 | O24: 0.0004574857255 | P24: 0.0002358674133 | Q24: 0.00027646448 | R24: 0.001673674748 | S24: 0.001998277952 | T24: 0.001404983682 | U24: 0.08757954247 | V24: 0.001387903809 | W24: 7.653787148e-05 | X24: 1.040182683e-05 | Y24: 5.903904927e-06 | Z24: 0.001997368753 | AA24: 0.005074817019
E25: Lead (+II) | F25: 9.501143304e-07 | G25: 5.249651063e-06 | H25: 3.972863046e-05 | I25: 2.23358464e-09 | J25: 8.207122994e-05 | K25: -5.174787142e-06 | L25: 5.327370557e-06 | M25: 2.361905314e-05 | N25: 7.525401983e-07 | O25: 9.574635206e-07 | P25: 5.433470069e-06 | Q25: 6.368668976e-06 | R25: 5.937053544e-05 | S25: 7.089846275e-05 | T25: 3.039645823e-05 | U25: 3.963626932e-05 | V25: 3.03424892e-05 | W25: 2.078627911e-07 | X25: 4.663834614e-08 | Y25: 5.147220079e-09 | Z25: -0.0001195006145 | AA25: 8.084563169e-05
E26: Manganese (+II) | F26: 0.001127869617 | G26: 0.01420954922 | H26: 0.0003573231346 | I26: 4.409805022e-06 | J26: 0.003704253205 | K26: 0.0003303486786 | L26: 6.296143097e-05 | M26: 0.0003675951663 | N26: 6.532123054e-05 | O26: 8.350833166e-05 | P26: 0.01447685367 | Q26: 0.01696858318 | R26: 5.824552143e-05 | S26: 6.894725238e-05 | T26: 0.0002119982585 | U26: 0.0003354644417 | V26: 0.0001992256523 | W26: 1.353200624e-05 | X26: 6.372854191e-06 | Y26: 5.300544917e-06 | Z26: 0.0004019767584 | AA26: 0.0003277740894
E27: Nickel (+II) | F27: 0.0007666041235 | G27: 0.0001167141013 | H27: 0.4978431525 | I27: 2.027063122e-07 | J27: 0.0001187575354 | K27: 0.001252368311 | L27: 4.886382671e-05 | M27: 0.0001688246773 | N27: 0.001256286676 | O27: 0.001724803709 | P27: 0.0001268277732 | Q27: 0.000148657137 | R27: 0.001055603506 | S27: 0.001260055408 | T27: 0.2909718022 | U27: 0.5032968339 | V27: 0.294158531 | W27: 0.0001486766489 | X27: 2.14483342e-07 | Y27: 2.057124873e-07 | Z27: 0.0007672985508 | AA27: 0.001815438096
E28: Strontium | F28: 0.0009678054484 | G28: 1.624630968e-07 | H28: 5.006282165e-05 | I28: 5.612764064e-08 | J28: 0.0003394086558 | K28: 1.677131519e-05 | L28: 8.16298544e-07 | M28: 7.746457227e-06 | N28: 6.420031859e-06 | O28: 8.861937603e-06 | P28: 1.72376198e-07 | Q28: 2.020452731e-07 | R28: 1.985128791e-06 | S28: 2.329034356e-06 | T28: 2.929810319e-05 | U28: 1.221500119e-06 | V28: 7.588412344e-07 | W28: 4.010611068e-07 | X28: 2.164268023e-07 | Y28: 1.288625741e-07 | Z28: 3.196638873e-05 | AA28: 2.270557544e-05
E29: Zinc (+II) | F29: 0.0001424112914 | G29: 8.651966676e-05 | H29: 0.06587543915 | I29: 5.844302514e-08 | J29: 4.860552212e-05 | K29: 0.001604129654 | L29: 7.322728422e-05 | M29: 0.0002719446082 | N29: 0.0001681700052 | O29: 0.0002307926933 | P29: 8.92861765e-05 | Q29: 0.0001046539495 | R29: 0.0009657730721 | S29: 0.001153288328 | T29: 0.0006347631245 | U29: 0.06588044099 | V29: 0.0006376858314 | W29: 4.141685258e-05 | X29: 9.01056159e-08 | Y29: 6.251106036e-08 | Z29: 0.0009132040531 | AA29: 0.002815949247
E30: Ammonium/ammonia | F30: 0.002022528987 | G30: 0.0001841736076 | H30: 1.148123735 | I30: 5.541746377e-07 | J30: 0.0004418708457 | K30: 0.01079195549 | L30: 1.983415597e-05 | M30: 9.611177832e-05 | N30: 0.002901893169 | O30: 0.003984044987 | P30: 0.0002059727587 | Q30: 0.0002414244123 | R30: 0.001370464423 | S30: 0.001636076082 | T30: 0.6709070134 | U30: 1.160671519 | V30: 0.6782390122 | W30: 0.0003466768424 | X30: 7.907434936e-07 | Y30: 6.615186188e-07 | Z30: 0.01646261577 | AA30: 0.0111442683
E31: Hydrogen chloride | F31: 3.885089925e-10 | G31: 1.806386316e-11 | H31: 3.337177704e-09 | I31: 1.057330531e-11 | J31: 3.834570433e-08 | K31: 1.438693997e-09 | L31: 1.637687493e-10 | M31: 1.315225431e-09 | N31: 0.0002537512014 | O31: 0.0003461411524 | P31: 2.150690965e-05 | Q31: 2.520863951e-05 | R31: 2.721797598e-05 | S31: 3.116603956e-05 | T31: 1.967787125e-09 | U31: 3.111679637e-09 | V31: 1.836022704e-09 | W31: 2.123872514e-11 | X31: 9.253077596e-12 | Y31: 9.974306892e-12 | Z31: 2.528152412e-09 | AA31: 2.225929074e-09
E32: Nitrogen (as total N) | F32: 2.649627794e-06 | G32: 0.000841968498 | H32: 1.689146498e-05 | I32: 1.612015828e-09 | J32: 3.742758557e-07 | K32: -0.0005487942985 | L32: 5.892031562e-08 | M32: 1.228244266e-05 | N32: 2.606758786e-10 | O32: 3.601524213e-10 | P32: 5.829305868e-11 | Q32: 6.832635307e-11 | R32: 8.24959288e-06 | S32: 9.649016826e-06 | T32: 0.001828643103 | U32: 1.997038293e-05 | V32: 0.001830442195 | W32: 1.050422993e-06 | X32: 1.678716441e-09 | Y32: 1.642287837e-09 | Z32: -0.00087967999 | AA32: -0.0005901756251
E33: Phosphate | F33: 2.996214058e-07 | G33: 7.717615145e-09 | H33: 2.51627186e-06 | I33: 8.036527909e-09 | J33: 0.0008246110592 | K33: 1.731289984e-05 | L33: 1.172908548e-07 | M33: 5.072074979e-06 | N33: 6.430631745e-10 | O33: 8.536366434e-10 | P33: 3.036695709e-11 | Q33: 3.559366206e-11 | R33: 1.604292338e-07 | S33: 1.90935268e-07 | T33: 1.473457137e-06 | U33: 1.026842815e-06 | V33: 6.031447795e-07 | W33: 7.746196386e-08 | X33: 2.174733844e-08 | Y33: 1.425775295e-08 | Z33: 2.271911387e-05 | AA33: 1.217835313e-05
E34: Phosphorus | F34: 8.671179796e-05 | G34: 5.894684924e-05 | H34: 0.001578104858 | I34: 3.055387741e-08 | J34: 3.150300791e-06 | K34: 0.001046610675 | L34: 5.235749523e-05 | M34: 0.0002469931112 | N34: 1.644251208e-05 | O34: 2.204623504e-05 | P34: 6.285071214e-06 | Q34: 7.366846149e-06 | R34: 0.0005910880468 | S34: 0.0007059526657 | T34: 0.001097076041 | U34: 0.001578729782 | V34: 0.0010974412 | W34: 2.896609455e-06 | X34: 4.755452742e-07 | Y34: 9.161767237e-08 | Z34: 0.0005343036834 | AA34: 0.001958582514
D35: Resource Energy (MJ/MWh) | E35: Crude oil | F35: 82.6149834 | G35: 4.160854481 | H35: 46.42913334 | I35: 0.07188866505 | J35: 12765.02598 | K35: 99.02362971 | L35: 6.391890508 | M35: 90.30482316 | N35: 59.71183283 | O35: 82.04231211 | P35: 4.706063569 | Q35: 5.516062602 | R35: 59.19015441 | S35: 70.68410271 | T35: 34.02038983 | U35: 42.55132187 | V35: 31.75448314 | W35: 1.203873993 | X35: 0.3608998015 | Y35: 0.1112338034 | Z35: 57.39256825 | AA35: 192.1177244
E36: Hard coal | F36: 10701.89575 | G36: 18.59418304 | H36: 282.7053623 | I36: 0.3116585248 | J36: 201.3222264 | K36: 47.39062832 | L36: 7.334219292 | M36: 104.8250336 | N36: 9654.870828 | O36: 13338.04165 | P36: 20.94040337 | Q36: 24.5446272 | R36: 10061.77061 | S36: 12017.21605 | T36: 167.6602583 | U36: 15.20059081 | V36: 11.35022189 | W36: 9.648675156 | X36: 2.182194053 | Y36: 0.7601189602 | Z36: 64.93434924 | AA36: 85.46307768
E37: Lignite | F37: 0.3291151495 | G37: 0.005621553507 | H37: 0.523405893 | I37: 0.02315617769 | J37: 16.22778318 | K37: 2.102352779 | L37: 0.3309745685 | M37: 1.592955792 | N37: 0.168871255 | O37: 0.2257806394 | P37: 0.01228380456 | Q37: 0.01439807048 | R37: 0.2071146286 | S37: 0.245461425 | T37: 0.3300606107 | U37: 0.4182845355 | V37: 0.2686354513 | W37: 0.04806721506 | X37: 0.03492814164 | Y37: 0.02849772995 | Z37: 2.740036279 | AA37: 2.247372686
E38: Natural gas | F38: 30.95354678 | G38: 7617.711168 | H38: 763.7668882 | I38: 0.07909032388 | J38: 1363.456762 | K38: 57.46143652 | L38: 2.875382675 | M38: 207.179905 | N38: 41.97832753 | O38: 53.83606703 | P38: 7761.574969 | Q38: 9097.483023 | R38: 84.97601512 | S38: 99.84865111 | T38: 464.0530361 | U38: 795.104489 | V38: 482.364416 | W38: 11.48857722 | X38: 0.2977012545 | Y38: 0.09844248425 | Z38: 52.72179426 | AA38: 62.77414778
E39: Uranium | F39: 1.45182687 | G39: 0.03286190303 | H39: 4.85143221 | I39: 0.04106102502 | J39: 77.67323662 | K39: 5.336792297 | L39: 0.6301533507 | M39: 7.946456374 | N39: 0.8692137688 | O39: 1.173535812 | P39: 0.05731040398 | Q39: 0.06717456564 | R39: 1.127650259 | S39: 1.339271329 | T39: 2.855593178 | U39: 4.574969812 | V39: 2.694048966 | W39: 0.07832078474 | X39: 0.05488769514 | Y39: 0.04733496491 | Z39: 7.791906615 | AA39: 6.785647122
E40: Total resource energy | F40: 10817.24522 | G40: 7640.504689 | H40: =SUM(H35:H39) -> 1098.276222 | I40: 0.5268547165 | J40: 14423.70598 | K40: 211.3148396 | L40: 17.56262039 | M40: 411.8491739 | N40: 9757.599073 | O40: 13475.31935 | P40: 7787.29103 | Q40: 9127.625285 | R40: 10207.27154 | S40: 12189.33354 | T40: 668.919338 | U40: 857.849656 | V40: 528.4318054 | W40: 22.46751436 | X40: 2.930610945 | Y40: 1.045627943 | Z40: 185.5806547 | AA40: 349.3879697

Sheet TechScenario
A1: Technology (Percentage) | B1: U.S. Consumption Mix 2013 | C1: U.S. Consumption Mix 2000 | D1: U.S. Consumption Mix 2001 | E1: U.S. Consumption Mix 2002 | F1: U.S. Consumption Mix 2003 | G1: U.S. Consumption Mix 2004 | H1: U.S. Consumption Mix 2005 | I1: U.S. Consumption Mix 2006 | J1: U.S. Consumption Mix 2007 | K1: U.S. Consumption Mix 2008 | L1: U.S. Consumption Mix 2009 | M1: U.S. Consumption Mix 2010 | N1: U.S. Consumption Mix 2011 | O1: U.S. Consumption Mix 2012 | P1: U.S. Gen. Mix 2000 | Q1: U.S. Gen. Mix 2001 | R1: U.S. Gen. Mix 2002 | S1: U.S. Gen. Mix 2003 | T1: U.S. Gen. Mix 2004 | U1: U.S. Gen. Mix 2005 | V1: U.S. Gen. Mix 2006 | W1: U.S. Gen. Mix 2007 | X1: U.S. Gen. Mix 2008 | Y1: U.S. Gen. Mix 2009 | Z1: U.S. Gen. Mix 2010 | AA1: U.S. Gen. Mix 2011 | AB1: U.S. Gen. Mix 2012 | AC1: U.S. Gen. Mix 2013 | AD1: U.S. Gen. Mix AEO2040 | AE1: North America Mix 2000 | AF1: North America Mix 2001 | AG1: North America Mix 2002 | AH1: North America Mix 2003 | AI1: North America Mix 2004 | AJ1: North America Mix 2005 | AK1: North America Mix 2006 | AL1: North America Mix 2007 | AM1: North America Mix 2008 | AN1: North America Mix 2009 | AO1: North America Mix 2010 | AP1: North America Mix 2011 | AQ1: North America Mix 2012 | AR1: North America Mix 2013
A2: Fleet Coal | B2: ='Default Mixes'!P12*100 -> 39.02600633 | C2: ='Default Mixes'!C12*100 -> 53.2024024 | D2: ='Default Mixes'!D12*100 -> 51.33102208 | E2: ='Default Mixes'!E12*100 -> 50.56734039 | F2: ='Default Mixes'!F12*100 -> 51.37029654 | G2: ='Default Mixes'!G12*100 -> 50.3206078 | H2: ='Default Mixes'!H12*100 -> 49.99686201 | I2: ='Default Mixes'!I12*100 -> 49.35553575 | J2: ='Default Mixes'!J12*100 -> 48.79878853 | K2: ='Default Mixes'!K12*100 -> 48.414084 | L2: ='Default Mixes'!L12*100 -> 44.6626087 | M2: ='Default Mixes'!M12*100 -> 45.02750254 | N2: ='Default Mixes'!N12*100 -> 42.50202503 | O2: ='Default Mixes'!O12*100 -> 37.55355478 | P2: ='Default Mixes'!C2*100 -> 53.85293379 | Q2: ='Default Mixes'!D2*100 -> 51.8084816 | R2: ='Default Mixes'!E2*100 -> 50.98969539 | S2: ='Default Mixes'!F2*100 -> 51.72537869 | T2: ='Default Mixes'!G2*100 -> 50.68946919 | U2: ='Default Mixes'!H2*100 -> 50.46914443 | V2: ='Default Mixes'!I2*100 -> 49.80178225 | W2: ='Default Mixes'!J2*100 -> 49.31444939 | X2: ='Default Mixes'!K2*100 -> 49.0012829 | Y2: ='Default Mixes'!L2*100 -> 45.20969847 | Z2: ='Default Mixes'!M2*100 -> 45.54334518 | AA2: ='Default Mixes'!N2*100 -> 43.0204531 | AB2: ='Default Mixes'!O2*100 -> 38.07613351 | AC2: ='Default Mixes'!P2*100 -> 39.64942587 | AD2: ='Default Mixes'!Q2*100 -> 35.03137196 | AE2: ='Default Mixes'!C22*100 -> 49.98892308 | AF2: ='Default Mixes'!D22*100 -> 48.3297493 | AG2: ='Default Mixes'!E22*100 -> 47.62520041 | AH2: ='Default Mixes'!F22*100 -> 48.4175564 | AI2: ='Default Mixes'!G22*100 -> 47.23309834 | AJ2: ='Default Mixes'!H22*100 -> 46.84993572 | AK2: ='Default Mixes'!I22*100 -> 46.27233297 | AL2: ='Default Mixes'!J22*100 -> 45.79240635 | AM2: ='Default Mixes'!K22*100 -> 45.39460016 | AN2: ='Default Mixes'!L22*100 -> 41.75548209 | AO2: ='Default Mixes'!M22*100 -> 42.26291207 | AP2: ='Default Mixes'!N22*100 -> 39.70887178 | AQ2: ='Default Mixes'!O22*100 -> 35.13290029 | AR2: ='Default Mixes'!P22*100 -> 36.54187545
A3: Fleet Natural Gas | B3: ='Default Mixes'!P13*100 -> 27.75561129 | C3: ='Default Mixes'!C13*100 -> 14.1901782 | D3: ='Default Mixes'!D13*100 -> 17.23774249 | E3: ='Default Mixes'!E13*100 -> 18.07422702 | F3: ='Default Mixes'!F13*100 -> 16.91593109 | G3: ='Default Mixes'!G13*100 -> 18.06857393 | H3: ='Default Mixes'!H13*100 -> 18.91192377 | I3: ='Default Mixes'!I13*100 -> 20.25459763 | J3: ='Default Mixes'!J13*100 -> 21.71556962 | K3: ='Default Mixes'!K13*100 -> 21.53651442 | L3: ='Default Mixes'!L13*100 -> 23.44619557 | M3: ='Default Mixes'!M13*100 -> 24.10131506 | N3: ='Default Mixes'!N13*100 -> 24.89321804 | O3: ='Default Mixes'!O13*100 -> 30.44755769 | P3: ='Default Mixes'!C3*100 -> 14.35565478 | Q3: ='Default Mixes'!D3*100 -> 17.39131736 | R3: ='Default Mixes'!E3*100 -> 18.22649561 | S3: ='Default Mixes'!F3*100 -> 17.03202474 | T3: ='Default Mixes'!G3*100 -> 18.19469943 | U3: ='Default Mixes'!H3*100 -> 19.07969363 | V3: ='Default Mixes'!I3*100 -> 20.42702447 | W3: ='Default Mixes'!J3*100 -> 21.92700569 | X3: ='Default Mixes'!K3*100 -> 21.78828683 | Y3: ='Default Mixes'!L3*100 -> 23.71267614 | Z3: ='Default Mixes'!M3*100 -> 24.35081953 | AA3: ='Default Mixes'!N3*100 -> 25.15784317 | AB3: ='Default Mixes'!O3*100 -> 30.82957592 | AC3: ='Default Mixes'!P3*100 -> 28.17394956 | AD3: ='Default Mixes'!Q3*100 -> 31.50727238 | AE3: ='Default Mixes'!C23*100 -> 13.28270674 | AF3: ='Default Mixes'!D23*100 -> 16.16302975 | AG3: ='Default Mixes'!E23*100 -> 16.82077491 | AH3: ='Default Mixes'!F23*100 -> 15.71619323 | AI3: ='Default Mixes'!G23*100 -> 16.79942124 | AJ3: ='Default Mixes'!H23*100 -> 17.6065425 | AK3: ='Default Mixes'!I23*100 -> 18.91037175 | AL3: ='Default Mixes'!J23*100 -> 20.26136778 | AM3: ='Default Mixes'!K23*100 -> 19.96898278 | AN3: ='Default Mixes'!L23*100 -> 21.68233838 | AO3: ='Default Mixes'!M23*100 -> 22.49598004 | AP3: ='Default Mixes'!N23*100 -> 23.23050962 | AQ3: ='Default Mixes'!O23*100 -> 28.23815571 | AR3: ='Default Mixes'!P23*100 -> 25.79563631
A4: Existing Nuclear | B4: ='Default Mixes'!P14*100 -> 19.57806822 | C4: ='Default Mixes'!C14*100 -> 20.71791005 | D4: ='Default Mixes'!D14*100 -> 20.79184413 | E4: ='Default Mixes'!E14*100 -> 20.45449298 | F4: ='Default Mixes'!F14*100 -> 19.92904989 | G4: ='Default Mixes'!G14*100 -> 20.16114281 | H4: ='Default Mixes'!H14*100 -> 19.52946444 | I4: ='Default Mixes'!I14*100 -> 19.64029604 | J4: ='Default Mixes'!J14*100 -> 19.62991438 | K4: ='Default Mixes'!K14*100 -> 19.88018873 | L4: ='Default Mixes'!L14*100 -> 20.54128687 | M4: ='Default Mixes'!M14*100 -> 19.83716555 | N4: ='Default Mixes'!N14*100 -> 19.5291123 | O4: ='Default Mixes'!O14*100 -> 19.28402889 | P4: ='Default Mixes'!C4*100 -> 20.89398934 | Q4: ='Default Mixes'!D4*100 -> 20.92049799 | R4: ='Default Mixes'!E4*100 -> 20.57555661 | S4: ='Default Mixes'!F4*100 -> 20.01501651 | T4: ='Default Mixes'!G4*100 -> 20.20423877 | U4: ='Default Mixes'!H4*100 -> 19.60688249 | V4: ='Default Mixes'!I4*100 -> 19.69590182 | W4: ='Default Mixes'!J4*100 -> 19.72193038 | X4: ='Default Mixes'!K4*100 -> 19.89384953 | Y4: ='Default Mixes'!L4*100 -> 20.56831904 | Z4: ='Default Mixes'!M4*100 -> 19.89510157 | AA4: ='Default Mixes'!N4*100 -> 19.61136828 | AB4: ='Default Mixes'!O4*100 -> 19.34763403 | AC4: ='Default Mixes'!P4*100 -> 19.74760124 | AD4: ='Default Mixes'!Q4*100 -> 17.38435883 | AE4: ='Default Mixes'!C24*100 -> 20.06114 | AF4: ='Default Mixes'!D24*100 -> 20.25661142 | AG4: ='Default Mixes'!E24*100 -> 19.9166465 | AH4: ='Default Mixes'!F24*100 -> 19.46320496 | AI4: ='Default Mixes'!G24*100 -> 19.9352216 | AJ4: ='Default Mixes'!H24*100 -> 19.31486895 | AK4: ='Default Mixes'!I24*100 -> 19.58604157 | AL4: ='Default Mixes'!J24*100 -> 19.3990004 | AM4: ='Default Mixes'!K24*100 -> 19.63363319 | AN4: ='Default Mixes'!L24*100 -> 20.18139411 | AO4: ='Default Mixes'!M24*100 -> 19.64215928 | AP4: ='Default Mixes'!N24*100 -> 19.34082696 | AQ4: ='Default Mixes'!O24*100 -> 19.17023731 | AR4: ='Default Mixes'!P24*100 -> 19.35600302
A5: Existing Hydro | B5: ='Default Mixes'!P15*100 -> 7.882365377 | C5: ='Default Mixes'!C15*100 -> 8.356615283 | D5: ='Default Mixes'!D15*100 -> 6.424719046 | E5: ='Default Mixes'!E15*100 -> 7.439925988 | F5: ='Default Mixes'!F15*100 -> 7.56615606 | G5: ='Default Mixes'!G15*100 -> 7.209375937 | H5: ='Default Mixes'!H15*100 -> 7.349220914 | I5: ='Default Mixes'!I15*100 -> 7.759921189 | J5: ='Default Mixes'!J15*100 -> 6.722672076 | K5: ='Default Mixes'!K15*100 -> 7.011606396 | L5: ='Default Mixes'!L15*100 -> 7.782324692 | M5: ='Default Mixes'!M15*100 -> 7.128944502 | N5: ='Default Mixes'!N15*100 -> 8.667501713 | O5: ='Default Mixes'!O15*100 -> 7.836346377 | P5: ='Default Mixes'!C5*100 -> 7.366560541 | Q5: ='Default Mixes'!D5*100 -> 5.663636 | R5: ='Default Mixes'!E5*100 -> 6.741529171 | S5: ='Default Mixes'!F5*100 -> 7.004324126 | T5: ='Default Mixes'!G5*100 -> 6.660090166 | U5: ='Default Mixes'!H5*100 -> 6.613379455 | V5: ='Default Mixes'!I5*100 -> 7.072739723 | W5: ='Default Mixes'!J5*100 -> 5.884456157 | X5: ='Default Mixes'!K5*100 -> 6.133004191 | Y5: ='Default Mixes'!L5*100 -> 6.92132413 | Z5: ='Default Mixes'!M5*100 -> 6.279458615 | AA5: ='Default Mixes'!N5*100 -> 7.766429836 | AB5: ='Default Mixes'!O5*100 -> 6.822576544 | AC5: ='Default Mixes'!P5*100 -> 6.604099659 | AD5: ='Default Mixes'!Q5*100 -> 6.535962341 | AE5: ='Default Mixes'!C25*100 -> 13.32632743 | AF5: ='Default Mixes'!D25*100 -> 11.27137772 | AG5: ='Default Mixes'!E25*100 -> 12.35771727 | AH5: ='Default Mixes'!F25*100 -> 12.36654659 | AI5: ='Default Mixes'!G25*100 -> 11.97571498 | AJ5: ='Default Mixes'!H25*100 -> 12.23071331 | AK5: ='Default Mixes'!I25*100 -> 12.40454327 | AL5: ='Default Mixes'!J25*100 -> 11.57137413 | AM5: ='Default Mixes'!K25*100 -> 12.00137739 | AN5: ='Default Mixes'!L25*100 -> 12.96560942 | AO5: ='Default Mixes'!M25*100 -> 11.85113922 | AP5: ='Default Mixes'!N25*100 -> 13.5400354 | AQ5: ='Default Mixes'!O25*100 -> 12.82046288 | AR5: ='Default Mixes'!P25*100 -> 12.86994845
A6: Petroleum | B6: ='Default Mixes'!P16*100 -> 0.9874982663 | C6: ='Default Mixes'!C16*100 -> 2.980571963 | D6: ='Default Mixes'!D16*100 -> 3.648238722 | E6: ='Default Mixes'!E16*100 -> 2.799736583 | F6: ='Default Mixes'!F16*100 -> 3.538327078 | G6: ='Default Mixes'!G16*100 -> 3.489142303 | H6: ='Default Mixes'!H16*100 -> 3.390650407 | I6: ='Default Mixes'!I16*100 -> 1.952299904 | J6: ='Default Mixes'!J16*100 -> 1.926641153 | K6: ='Default Mixes'!K16*100 -> 1.42062293 | L6: ='Default Mixes'!L16*100 -> 1.272864026 | M6: ='Default Mixes'!M16*100 -> 1.183144355 | N6: ='Default Mixes'!N16*100 -> 1.026138066 | O6: ='Default Mixes'!O16*100 -> 0.8729255915 | P6: ='Default Mixes'!C6*100 -> 2.97158266 | Q6: ='Default Mixes'!D6*100 -> 3.644065329 | R6: ='Default Mixes'!E6*100 -> 2.796753655 | S6: ='Default Mixes'!F6*100 -> 3.538078516 | T6: ='Default Mixes'!G6*100 -> 3.494863284 | U6: ='Default Mixes'!H6*100 -> 3.402155893 | V6: ='Default Mixes'!I6*100 -> 1.960110256 | W6: ='Default Mixes'!J6*100 -> 1.936719609 | X6: ='Default Mixes'!K6*100 -> 1.429939527 | Y6: ='Default Mixes'!L6*100 -> 1.276239666 | Z6: ='Default Mixes'!M6*100 -> 1.19261934 | AA6: ='Default Mixes'!N6*100 -> 1.036106376 | AB6: ='Default Mixes'!O6*100 -> 0.8824157388 | AC6: ='Default Mixes'!P6*100 -> 0.9997739959 | AD6: ='Default Mixes'!Q6*100 -> 0.33762505 | AE6: ='Default Mixes'!C26*100 -> 2.842238672 | AF6: ='Default Mixes'!D26*100 -> 3.464079133 | AG6: ='Default Mixes'!E26*100 -> 2.675497189 | AH6: ='Default Mixes'!F26*100 -> 3.410560058 | AI6: ='Default Mixes'!G26*100 -> 3.361483288 | AJ6: ='Default Mixes'!H26*100 -> 3.225849989 | AK6: ='Default Mixes'!I26*100 -> 1.844669608 | AL6: ='Default Mixes'!J26*100 -> 1.834712061 | AM6: ='Default Mixes'!K26*100 -> 1.366442988 | AN6: ='Default Mixes'!L26*100 -> 1.224970497 | AO6: ='Default Mixes'!M26*100 -> 1.105592099 | AP6: ='Default Mixes'!N26*100 -> 0.9435598135 | AQ6: ='Default Mixes'!O26*100 -> 0.8085710618 | AR6: ='Default Mixes'!P26*100 -> 0.9066006997
A7: Onshore Wind | B7: ='Default Mixes'!P17*100 -> 4.159384928 | C7: ='Default Mixes'!C17*100 -> 0.1535366774 | D7: ='Default Mixes'!D17*100 -> 0.1819053089 | E7: ='Default Mixes'!E17*100 -> 0.2711172502 | F7: ='Default Mixes'!F17*100 -> 0.2914009203 | G7: ='Default Mixes'!G17*100 -> 0.360287675 | H7: ='Default Mixes'!H17*100 -> 0.4437995116 | I7: ='Default Mixes'!I17*100 -> 0.6639704774 | J7: ='Default Mixes'!J17*100 -> 0.8379066976 | K7: ='Default Mixes'!K17*100 -> 1.354763794 | L7: ='Default Mixes'!L17*100 -> 1.890687209 | M7: ='Default Mixes'!M17*100 -> 2.321443442 | N7: ='Default Mixes'!N17*100 -> 2.96160592 | O7: ='Default Mixes'!O17*100 -> 3.511749155 | P7: ='Default Mixes'!C7*100 -> 0.1550160898 | Q7: ='Default Mixes'!D7*100 -> 0.1833202766 | R7: ='Default Mixes'!E7*100 -> 0.2731049159 | S7: ='Default Mixes'!F7*100 -> 0.293175743 | T7: ='Default Mixes'!G7*100 -> 0.3624078703 | U7: ='Default Mixes'!H7*100 -> 0.4465785628 | V7: ='Default Mixes'!I7*100 -> 0.665246054 | W7: ='Default Mixes'!J7*100 -> 0.8425092248 | X7: ='Default Mixes'!K7*100 -> 1.366127837 | Y7: ='Default Mixes'!L7*100 -> 1.90236128 | Z7: ='Default Mixes'!M7*100 -> 2.333563603 | AA7: ='Default Mixes'!N7*100 -> 2.982565775 | AB7: ='Default Mixes'!O7*100 -> 3.54148282 | AC7: ='Default Mixes'!P7*100 -> 4.204526939 | AD7: ='Default Mixes'!Q7*100 -> 5.451910322 | AE7: ='Default Mixes'!C27*100 -> 0.1428489459 | AF7: ='Default Mixes'!D27*100 -> 0.1709433254 | AG7: ='Default Mixes'!E27*100 -> 0.2519928276 | AH7: ='Default Mixes'!F27*100 -> 0.2769175875 | AI7: ='Default Mixes'!G27*100 -> 0.344032643 | AJ7: ='Default Mixes'!H27*100 -> 0.4330591989 | AK7: ='Default Mixes'!I27*100 -> 0.6461813652 | AL7: ='Default Mixes'!J27*100 -> 0.8101911256 | AM7: ='Default Mixes'!K27*100 -> 1.291174817 | AN7: ='Default Mixes'!L27*100 -> 1.827315768 | AO7: ='Default Mixes'!M27*100 -> 2.277535944 | AP7: ='Default Mixes'!N27*100 -> 2.85331607 | AQ7: ='Default Mixes'!O27*100 -> 3.378766114 | AR7: ='Default Mixes'!P27*100 -> 3.97112117
A8: Geothermal | B8: ='Default Mixes'!P18*100 -> 0.3883889548 | C8: ='Default Mixes'!C18*100 -> 0.3852969002 | D8: ='Default Mixes'!D18*100 -> 0.369910549 | E8: ='Default Mixes'!E18*100 -> 0.3786573513 | F8: ='Default Mixes'!F18*100 -> 0.3749569026 | G8: ='Default Mixes'!G18*100 -> 0.3762621197 | H8: ='Default Mixes'!H18*100 -> 0.3644361581 | I8: ='Default Mixes'!I18*100 -> 0.3607976438 | J8: ='Default Mixes'!J18*100 -> 0.3537179349 | K8: ='Default Mixes'!K18*100 -> 0.3611908311 | L8: ='Default Mixes'!L18*100 -> 0.3813796028 | M8: ='Default Mixes'!M18*100 -> 0.370636441 | N8: ='Default Mixes'!N18*100 -> 0.3753803513 | O8: ='Default Mixes'!O18*100 -> 0.3858327221 | P8: ='Default Mixes'!C8*100 -> 0.3905890047 | Q8: ='Default Mixes'!D8*100 -> 0.3739058811 | R8: ='Default Mixes'!E8*100 -> 0.3822255492 | S8: ='Default Mixes'!F8*100 -> 0.3780072331 | T8: ='Default Mixes'!G8*100 -> 0.3794982301 | U8: ='Default Mixes'!H8*100 -> 0.3683752875 | V8: ='Default Mixes'!I8*100 -> 0.3644854833 | W8: ='Default Mixes'!J8*100 -> 0.3579624825 | X8: ='Default Mixes'!K8*100 -> 0.3661892799 | Y8: ='Default Mixes'!L8*100 -> 0.3864404685 | Z8: ='Default Mixes'!M8*100 -> 0.3752113476 | AA8: ='Default Mixes'!N8*100 -> 0.3801141434 | AB8: ='Default Mixes'!O8*100 -> 0.3913632503 | AC8: ='Default Mixes'!P8*100 -> 0.3948188751 | AD8: ='Default Mixes'!Q8*100 -> 1.478503833 | AE8: ='Default Mixes'!C28*100 -> 0.3437800339 | AF8: ='Default Mixes'!D28*100 -> 0.3311243854 | AG8: ='Default Mixes'!E28*100 -> 0.3391804037 | AH8: ='Default Mixes'!F28*100 -> 0.3365611277 | AI8: ='Default Mixes'!G28*100 -> 0.3379094176 | AJ8: ='Default Mixes'!H28*100 -> 0.3267965846 | AK8: ='Default Mixes'!I28*100 -> 0.3245423662 | AL8: ='Default Mixes'!J28*100 -> 0.3176659545 | AM8: ='Default Mixes'!K28*100 -> 0.3248741645 | AN8: ='Default Mixes'!L28*100 -> 0.3424557284 | AO8: ='Default Mixes'!M28*100 -> 0.3345738111 | AP8: ='Default Mixes'!N28*100 -> 0.3371990133 | AQ8: ='Default Mixes'!O28*100 -> 0.3472816035 | AR8: ='Default Mixes'!P28*100 -> 0.3504067616
A9: Solar Thermal | B9: ='Default Mixes'!P19*100 -> 0.2226766386 | C9: ='Default Mixes'!C19*100 -> 0.01348852103 | D9: ='Default Mixes'!D19*100 -> 0.01461767179 | E9: ='Default Mixes'!E19*100 -> 0.01450243806 | F9: ='Default Mixes'!F19*100 -> 0.01388151595 | G9: ='Default Mixes'!G19*100 -> 0.01460743493 | H9: ='Default Mixes'!H19*100 -> 0.01364279111 | I9: ='Default Mixes'!I19*100 -> 0.01258135661 | J9: ='Default Mixes'!J19*100 -> 0.01478960007 | K9: ='Default Mixes'!K19*100 -> 0.02102890014 | L9: ='Default Mixes'!L19*100 -> 0.0226533311 | M9: ='Default Mixes'!M19*100 -> 0.02984811697 | N9: ='Default Mixes'!N19*100 -> 0.04501858684 | O9: ='Default Mixes'!O19*100 -> 0.1080047994 | P9: ='Default Mixes'!C9*100 -> 0.01367378768 | Q9: ='Default Mixes'!D9*100 -> 0.01477555443 | R9: ='Default Mixes'!E9*100 -> 0.01463909874 | S9: ='Default Mixes'!F9*100 -> 0.01399444415 | T9: ='Default Mixes'!G9*100 -> 0.01473306882 | U9: ='Default Mixes'!H9*100 -> 0.01379025375 | V9: ='Default Mixes'!I9*100 -> 0.01270995507 | W9: ='Default Mixes'!J9*100 -> 0.01496707244 | X9: ='Default Mixes'!K9*100 -> 0.02131991495 | Y9: ='Default Mixes'!L9*100 -> 0.02294079935 | Z9: ='Default Mixes'!M9*100 -> 0.02988081696 | AA9: ='Default Mixes'!N9*100 -> 0.0451193205 | AB9: ='Default Mixes'!O9*100 -> 0.1088181972 | AC9: ='Default Mixes'!P9*100 -> 0.22580386 | AD9: ='Default Mixes'!Q9*100 -> 0.07760298226 | AE9: ='Default Mixes'!C29*100 -> 0.0120350935 | AF9: ='Default Mixes'!D29*100 -> 0.01308496771 | AG9: ='Default Mixes'!E29*100 -> 0.01299048541 | AH9: ='Default Mixes'!F29*100 -> 0.01246004175 | AI9: ='Default Mixes'!G29*100 -> 0.01311848728 | AJ9: ='Default Mixes'!H29*100 -> 0.01223374092 | AK9: ='Default Mixes'!I29*100 -> 0.01131710063 | AL9: ='Default Mixes'!J29*100 -> 0.01328220019 | AM9: ='Default Mixes'!K29*100 -> 0.01891450661 | AN9: ='Default Mixes'!L29*100 -> 0.02043401201 | AO9: ='Default Mixes'!M29*100 -> 0.03010753093 | AP9: ='Default Mixes'!N29*100 -> 0.04568134739 | AQ9: ='Default Mixes'!O29*100 -> 0.1036250306 | AR9: ='Default Mixes'!P29*100 -> 0.2084081309
A10: SCPC | B10: 0 | C10: 0 | D10: 0 | E10: 0 | F10: 0 | G10: 0 | H10: 0 | I10: 0 | J10: 0 | K10: 0 | L10: 0 | P10: 0 | Q10: 0 | R10: 0 | S10: 0 | T10: 0 | U10: 0 | V10: 0 | W10: 0 | X10: 0 | Y10: 0 | Z10: 0 | AA10: 0 | AB10: 0 | AC10: 0 | AD10: 0 | AE10: 0 | AF10: 0 | AG10: 0 | AH10: 0 | AI10: 0 | AJ10: 0 | AK10: 0 | AL10: 0 | AM10: 0 | AN10: 0 | AO10: 0
A11: SCPC/CCS | B11: 0 | C11: 0 | D11: 0 | E11: 0 | F11: 0 | G11: 0 | H11: 0 | I11: 0 | J11: 0 | K11: 0 | L11: 0 | P11: 0 | Q11: 0 | R11: 0 | S11: 0 | T11: 0 | U11: 0 | V11: 0 | W11: 0 | X11: 0 | Y11: 0 | Z11: 0 | AA11: 0 | AB11: 0 | AC11: 0 | AD11: 0 | AE11: 0 | AF11: 0 | AG11: 0 | AH11: 0 | AI11: 0 | AJ11: 0 | AK11: 0 | AL11: 0 | AM11: 0 | AN11: 0 | AO11: 0
A12: NGCC | B12: 0 | C12: 0 | D12: 0 | E12: 0 | F12: 0 | G12: 0 | H12: 0 | I12: 0 | J12: 0 | K12: 0 | L12: 0 | P12: 0 | Q12: 0 | R12: 0 | S12: 0 | T12: 0 | U12: 0 | V12: 0 | W12: 0 | X12: 0 | Y12: 0 | Z12: 0 | AA12: 0 | AB12: 0 | AC12: 0 | AD12: 0 | AE12: 0 | AF12: 0 | AG12: 0 | AH12: 0 | AI12: 0 | AJ12: 0 | AK12: 0 | AL12: 0 | AM12: 0 | AN12: 0 | AO12: 0
A13: NGCC/CCS | B13: 0 | C13: 0 | D13: 0 | E13: 0 | F13: 0 | G13: 0 | H13: 0 | I13: 0 | J13: 0 | K13: 0 | L13: 0 | P13: 0 | Q13: 0 | R13: 0 | S13: 0 | T13: 0 | U13: 0 | V13: 0 | W13: 0 | X13: 0 | Y13: 0 | Z13: 0 | AA13: 0 | AB13: 0 | AC13: 0 | AD13: 0 | AE13: 0 | AF13: 0 | AG13: 0 | AH13: 0 | AI13: 0 | AJ13: 0 | AK13: 0 | AL13: 0 | AM13: 0 | AN13: 0 | AO13: 0
A14: IGCC | B14: 0 | C14: 0 | D14: 0 | E14: 0 | F14: 0 | G14: 0 | H14: 0 | I14: 0 | J14: 0 | K14: 0 | L14: 0 | P14: 0 | Q14: 0 | R14: 0 | S14: 0 | T14: 0 | U14: 0 | V14: 0 | W14: 0 | X14: 0 | Y14: 0 | Z14: 0 | AA14: 0 | AB14: 0 | AC14: 0 | AD14: 0 | AE14: 0 | AF14: 0 | AG14: 0 | AH14: 0 | AI14: 0 | AJ14: 0 | AK14: 0 | AL14: 0 | AM14: 0 | AN14: 0 | AO14: 0
A15: IGCC/CCS | B15: 0 | C15: 0 | D15: 0 | E15: 0 | F15: 0 | G15: 0 | H15: 0 | I15: 0 | J15: 0 | K15: 0 | L15: 0 | P15: 0 | Q15: 0 | R15: 0 | S15: 0 | T15: 0 | U15: 0 | V15: 0 | W15: 0 | X15: 0 | Y15: 0 | Z15: 0 | AA15: 0 | AB15: 0 | AC15: 0 | AD15: 0 | AE15: 0 | AF15: 0 | AG15: 0 | AH15: 0 | AI15: 0 | AJ15: 0 | AK15: 0 | AL15: 0 | AM15: 0 | AN15: 0 | AO15: 0
A16: Gen III+ Nuclear | B16: 0 | C16: 0 | D16: 0 | E16: 0 | F16: 0 | G16: 0 | H16: 0 | I16: 0 | J16: 0 | K16: 0 | L16: 0 | P16: 0 | Q16: 0 | R16: 0 | S16: 0 | T16: 0 | U16: 0 | V16: 0 | W16: 0 | X16: 0 | Y16: 0 | Z16: 0 | AA16: 0 | AB16: 0 | AC16: 0 | AD16: 0 | AE16: 0 | AF16: 0 | AG16: 0 | AH16: 0 | AI16: 0 | AJ16: 0 | AK16: 0 | AL16: 0 | AM16: 0 | AN16: 0 | AO16: 0
A17: Existing Nuclear w/ Centrifuge Enrich | B17: 0 | C17: 0 | D17: 0 | E17: 0 | F17: 0 | G17: 0 | H17: 0 | I17: 0 | J17: 0 | K17: 0 | L17: 0 | P17: 0 | Q17: 0 | R17: 0 | S17: 0 | T17: 0 | U17: 0 | V17: 0 | W17: 0 | X17: 0 | Y17: 0 | Z17: 0 | AA17: 0 | AB17: 0 | AC17: 0 | AD17: 0 | AE17: 0 | AF17: 0 | AG17: 0 | AH17: 0 | AI17: 0 | AJ17: 0 | AK17: 0 | AL17: 0 | AM17: 0 | AN17: 0 | AO17: 0
A18: Gen III+ Nuclear w/ Centrifuge Enrich | B18: 0 | C18: 0 | D18: 0 | E18: 0 | F18: 0 | G18: 0 | H18: 0 | I18: 0 | J18: 0 | K18: 0 | L18: 0 | P18: 0 | Q18: 0 | R18: 0 | S18: 0 | T18: 0 | U18: 0 | V18: 0 | W18: 0 | X18: 0 | Y18: 0 | Z18: 0 | AA18: 0 | AB18: 0 | AC18: 0 | AD18: 0 | AE18: 0 | AF18: 0 | AG18: 0 | AH18: 0 | AI18: 0 | AJ18: 0 | AK18: 0 | AL18: 0 | AM18: 0 | AN18: 0 | AO18: 0
A19: Greenfield Hydro | B19: 0 | C19: 0 | D19: 0 | E19: 0 | F19: 0 | G19: 0 | H19: 0 | I19: 0 | J19: 0 | K19: 0 | L19: 0 | P19: 0 | Q19: 0 | R19: 0 | S19: 0 | T19: 0 | U19: 0 | V19: 0 | W19: 0 | X19: 0 | Y19: 0 | Z19: 0 | AA19: 0 | AB19: 0 | AC19: 0 | AD19: 0 | AE19: 0 | AF19: 0 | AG19: 0 | AH19: 0 | AI19: 0 | AJ19: 0 | AK19: 0 | AL19: 0 | AM19: 0 | AN19: 0 | AO19: 0
A20: Power Addition Hydro | B20: 0 | C20: 0 | D20: 0 | E20: 0 | F20: 0 | G20: 0 | H20: 0 | I20: 0 | J20: 0 | K20: 0 | L20: 0 | P20: 0 | Q20: 0 | R20: 0 | S20: 0 | T20: 0 | U20: 0 | V20: 0 | W20: 0 | X20: 0 | Y20: 0 | Z20: 0 | AA20: 0 | AB20: 0 | AC20: 0 | AD20: 0 | AE20: 0 | AF20: 0 | AG20: 0 | AH20: 0 | AI20: 0 | AJ20: 0 | AK20: 0 | AL20: 0 | AM20: 0 | AN20: 0 | AO20: 0
A21: Power Upgrade Hydro | B21: 0 | C21: 0 | D21: 0 | E21: 0 | F21: 0 | G21: 0 | H21: 0 | I21: 0 | J21: 0 | K21: 0 | L21: 0 | P21: 0 | Q21: 0 | R21: 0 | S21: 0 | T21: 0 | U21: 0 | V21: 0 | W21: 0 | X21: 0 | Y21: 0 | Z21: 0 | AA21: 0 | AB21: 0 | AC21: 0 | AD21: 0 | AE21: 0 | AF21: 0 | AG21: 0 | AH21: 0 | AI21: 0 | AJ21: 0 | AK21: 0 | AL21: 0 | AM21: 0 | AN21: 0 | AO21: 0
A22: Advanced Onshore Wind | B22: 0 | C22: 0 | D22: 0 | E22: 0 | F22: 0 | G22: 0 | H22: 0 | I22: 0 | J22: 0 | K22: 0 | L22: 0 | P22: 0 | Q22: 0 | R22: 0 | S22: 0 | T22: 0 | U22: 0 | V22: 0 | W22: 0 | X22: 0 | Y22: 0 | Z22: 0 | AA22: 0 | AB22: 0 | AC22: 0 | AD22: 0 | AE22: 0 | AF22: 0 | AG22: 0 | AH22: 0 | AI22: 0 | AJ22: 0 | AK22: 0 | AL22: 0 | AM22: 0 | AN22: 0 | AO22: 0
A23: Offshore Wind | B23: 0 | C23: 0 | D23: 0 | E23: 0 | F23: 0 | G23: 0 | H23: 0 | I23: 0 | J23: 0 | K23: 0 | L23: 0 | P23: 0 | Q23: 0 | R23: 0 | S23: 0 | T23: 0 | U23: 0 | V23: 0 | W23: 0 | X23: 0 | Y23: 0 | Z23: 0 | AA23: 0 | AB23: 0 | AC23: 0 | AD23: 0 | AE23: 0 | AF23: 0 | AG23: 0 | AH23: 0 | AI23: 0 | AJ23: 0 | AK23: 0 | AL23: 0 | AM23: 0 | AN23: 0 | AO23: 0

Sheet Parameters (hidden)
A1: Parameter Values | H1: Automatically Populated (Based on TechScenario. Load on Start) | L1: Automatically Populated (Based on TechScenario. Load on Start)
A2: Numerator | B2: Denominator | C2: UnitLabel | D2: UnitConv | E2: NumeratorList | F2: DenominatorList | H2: Technology | I2: Input Value | J2: Balance | K2: Format | L2: MixList | M2: SelectedMix
A3: kg | B3: MWh | C3: =" (" & Numerator & "/" & Denominator & ")" -> (kg/MWh) | D3: =CONVERT(1,"kg",IF(Numerator="lb","lbm",Numerator))/(CONVERT(1,"MWh",IF(Denominator="MMBtu","BTU",Denominator))*IF(Denominator="MMBtu",0.000001,1)) -> 1 | E3: Kg | F3: MWh | H3: Fleet Coal | I3: 39 | J3: =I3/SUM(I:I)*100 -> 38.96103896 | K3: =ROUND(J3, 1) -> 39 | L3: U.S. Consumption Mix 2013 | M3: U.S. Consumption Mix 2013
E4: lb | F4: MJ | H4: Fleet Natural Gas | I4: 27.8 | J4: 27.77222777 | K4: 27.8 | L4: U.S. Consumption Mix 2000
A5: RibbonRef | F5: MMBtu | H5: Existing Nuclear | I5: 19.6 | J5: 19.58041958 | K5: 19.6 | L5: U.S. Consumption Mix 2001
A6: 229211604 | H6: Existing Hydro | I6: 7.9 | J6: 7.892107892 | K6: 7.9 | L6: U.S. Consumption Mix 2002
H7: Petroleum | I7: 1 | J7: 0.999000999 | K7: 1 | L7: U.S. Consumption Mix 2003
A8: SelectedGWP | B8: GWPCO2 | C8: GWPN2O | D8: GWPSF6 | E8: GWPCH4 | F8: Label | H8: Onshore Wind | I8: 4.2 | J8: 4.195804196 | K8: 4.2 | L8: U.S. Consumption Mix 2004
A9: 2013100 | B9: =VLOOKUP(SelectedGWP,$A$12:$F$19,2,FALSE) -> 1 | C9: =VLOOKUP(SelectedGWP,$A$12:$F$19,3,FALSE) -> 265 | D9: =VLOOKUP(SelectedGWP,$A$12:$F$19,4,FALSE) -> 23500 | E9: =VLOOKUP(SelectedGWP,$A$12:$F$19,5,FALSE) -> 30 | F9: =VLOOKUP(SelectedGWP,$A$12:$F$19,6,FALSE) -> kg CO₂e/ delievered MWh (IPCC 2013 100-yr GWP) | H9: Geothermal | I9: 0.4 | J9: 0.3996003996 | K9: 0.4 | L9: U.S. Consumption Mix 2005
H10: Solar Thermal | I10: 0.2 | J10: 0.1998001998 | K10: 0.2 | L10: U.S. Consumption Mix 2006
A11: GWP | B11: Carbon dioxide | C11: Nitrous oxide (laughing gas) | D11: Sulphur hexafluoride | E11: Methane | F11: Label | H11: SCPC | I11: 0 | J11: 0 | K11: 0 | L11: U.S. Consumption Mix 2007
A12: 200120 | B12: 1 | C12: 275 | D12: 15100 | E12: 62 | F12: =Numerator & " CO₂e/ delievered " & Denominator & " (IPCC 2001 20-yr GWP)" -> kg CO₂e/ delievered MWh (IPCC 2001 20-yr GWP) | H12: SCPC/CCS | I12: 0 | J12: 0 | K12: 0 | L12: U.S. Consumption Mix 2008
A13: 2001100 | B13: 1 | C13: 296 | D13: 22200 | E13: 23 | F13: =Numerator & " CO₂e/ delievered " & Denominator & " (IPCC 2001 100-yr GWP)" -> kg CO₂e/ delievered MWh (IPCC 2001 100-yr GWP) | H13: NGCC | I13: 0 | J13: 0 | K13: 0 | L13: U.S. Consumption Mix 2009
A14: 2001500 | B14: 1 | C14: 156 | D14: 32400 | E14: 7 | F14: =Numerator & " CO₂e/ delievered " & Denominator & " (IPCC 2001 500-yr GWP)" -> kg CO₂e/ delievered MWh (IPCC 2001 500-yr GWP) | H14: NGCC/CCS | I14: 0 | J14: 0 | K14: 0 | L14: U.S. Consumption Mix 2010
A15: 200720 | B15: 1 | C15: 289 | D15: 16300 | E15: 72 | F15: =Numerator & " CO₂e/ delievered " & Denominator & " (IPCC 2007 20-yr GWP)" -> kg CO₂e/ delievered MWh (IPCC 2007 20-yr GWP) | H15: IGCC | I15: 0 | J15: 0 | K15: 0 | L15: U.S. Consumption Mix 2011
A16: 2007100 | B16: 1 | C16: 298 | D16: 22800 | E16: 25 | F16: =Numerator & " CO₂e/ delievered " & Denominator & " (IPCC 2007 100-yr GWP)" -> kg CO₂e/ delievered MWh (IPCC 2007 100-yr GWP) | H16: IGCC/CCS | I16: 0 | J16: 0 | K16: 0 | L16: U.S. Consumption Mix 2012
A17: 2007500 | B17: 1 | C17: 153 | D17: 32600 | E17: 7.6 | F17: =Numerator & " CO₂e/ delievered " & Denominator & " (IPCC 2007 500-yr GWP)" -> kg CO₂e/ delievered MWh (IPCC 2007 500-yr GWP) | H17: Gen III+ Nuclear | I17: 0 | J17: 0 | K17: 0 | L17: U.S. Gen. Mix 2000
A18: 201320 | B18: 1 | C18: 264 | D18: 17500 | E18: 85 | F18: =Numerator & " CO₂e/ delievered " & Denominator & " (IPCC 2013 20-yr GWP)" -> kg CO₂e/ delievered MWh (IPCC 2013 20-yr GWP) | H18: Existing Nuclear w/ Centrifuge Enrich | I18: 0 | J18: 0 | K18: 0 | L18: U.S. Gen. Mix 2001
A19: 2013100 | B19: 1 | C19: 265 | D19: 23500 | E19: 30 | F19: =Numerator & " CO₂e/ delievered " & Denominator & " (IPCC 2013 100-yr GWP)" -> kg CO₂e/ delievered MWh (IPCC 2013 100-yr GWP) | H19: Gen III+ Nuclear w/ Centrifuge Enrich | I19: 0 | J19: 0 | K19: 0 | L19: U.S. Gen. Mix 2002
H20: Greenfield Hydro | I20: 0 | J20: 0 | K20: 0 | L20: U.S. Gen. Mix 2003
H21: Power Addition Hydro | I21: 0 | J21: 0 | K21: 0 | L21: U.S. Gen. Mix 2004
H22: Power Upgrade Hydro | I22: 0 | J22: 0 | K22: 0 | L22: U.S. Gen. Mix 2005
A23: RngMixType | B23: NumTech | C23: NumMix | D23: DefaultNumMix | E23: DefaultMixName | H23: Advanced Onshore Wind | I23: 0 | J23: 0 | K23: 0 | L23: U.S. Gen. Mix 2006
A24: ="Parameters!L3:L"&COUNTA(Parameters!L:L) -> Parameters!L3:L45 | B24: =COUNTA(TechScenario!A:A)-1 -> 22 | C24: =COUNTA(TechScenario!1:1)-1 -> 43 | D24: 43 | E24: =TechScenario!B1 -> U.S. Consumption Mix 2013 | H24: Offshore Wind | I24: 0 | J24: 0 | K24: 0 | L24: U.S. Gen. Mix 2007
L25: U.S. Gen. Mix 2008
L26: U.S. Gen. Mix 2009
L27: U.S. Gen. Mix 2010
L28: U.S. Gen. Mix 2011
L29: U.S. Gen. Mix 2012
L30: U.S. Gen. Mix 2013
L31: U.S. Gen. Mix AEO2040
L32: North America Mix 2000
L33: North America Mix 2001
L34: North America Mix 2002
L35: North America Mix 2003
L36: North America Mix 2004
L37: North America Mix 2005
L38: North America Mix 2006
L39: North America Mix 2007
L40: North America Mix 2008
L41: North America Mix 2009
L42: North America Mix 2010
L43: North America Mix 2011
L44: North America Mix 2012
L45: North America Mix 2013

Sheet Version (hidden)
A1: Purpose | B1: Show Grid Mix Explorer
A2: Developer | B2: Chung Shih. Greg Cooney. Joe Marriott.
A5: Version | B5: Date | C5: Description
A6: 0.1 | B6: 2012-11-15 | C6: Beta version
A7: 0.2 | B7: 2012-11-16 | C7: Removed chart update in form but in dashboard
A8: 0.3 | B8: 2012-11-20 | C8: Updated all datasets
A9: 0.4 | B9: 2012-11-20 | C9: Removed compare button in the ribbon
A10: 1.0 | B10: 2014-08-13 | C10: Updated model to include AEO2014 with updated mixer interface
A11: 1.1 | B11: 2014-08-14 | C11: Updated water usage chart. Updated scenario names
A12: 2.0 | B12: 2015-01-27 | C12: Updated the Data, TechScenario, Default Mixes. Remove 1.0 and 1.1 AEO-scenario series. Removed water usage chart.

Sheet Default Mixes
B1: Year | C1: 2000 | D1: 2001 | E1: 2002 | F1: 2003 | G1: 2004 | H1: 2005 | I1: 2006 | J1: 2007 | K1: 2008 | L1: 2009 | M1: 2010 | N1: 2011 | O1: 2012 | P1: 2013 | Q1: AEO 2040
A2: U.S. Generation Mix | B2: Fleet Coal | C2: 0.5385293379 | D2: 0.518084816 | E2: 0.5098969539 | F2: 0.5172537869 | G2: 0.5068946919 | H2: 0.5046914443 | I2: 0.4980178225 | J2: 0.4931444939 | K2: 0.490012829 | L2: 0.4520969847 | M2: 0.4554334518 | N2: 0.430204531 | O2: 0.3807613351 | P2: 0.3964942587 | Q2: 0.3503137196
B3: Fleet Natural Gas | C3: 0.1435565478 | D3: 0.1739131736 | E3: 0.1822649561 | F3: 0.1703202474 | G3: 0.1819469943 | H3: 0.1907969363 | I3: 0.2042702447 | J3: 0.2192700569 | K3: 0.2178828683 | L3: 0.2371267614 | M3: 0.2435081953 | N3: 0.2515784317 | O3: 0.3082957592 | P3: 0.2817394956 | Q3: 0.3150727238
B4: Existing Nuclear | C4: 0.2089398934 | D4: 0.2092049799 | E4: 0.2057555661 | F4: 0.2001501651 | G4: 0.2020423877 | H4: 0.1960688249 | I4: 0.1969590182 | J4: 0.1972193038 | K4: 0.1989384953 | L4: 0.2056831904 | M4: 0.1989510157 | N4: 0.1961136828 | O4: 0.1934763403 | P4: 0.1974760124 | Q4: 0.1738435883
B5: Existing Hydro | C5: 0.07366560541 | D5: 0.05663636 | E5: 0.06741529171 | F5: 0.07004324126 | G5: 0.06660090166 | H5: 0.06613379455 | I5: 0.07072739723 | J5: 0.05884456157 | K5: 0.06133004191 | L5: 0.0692132413 | M5: 0.06279458615 | N5: 0.07766429836 | O5: 0.06822576544 | P5: 0.06604099659 | Q5: 0.06535962341
B6: Petroleum | C6: 0.0297158266 | D6: 0.03644065329 | E6: 0.02796753655 | F6: 0.03538078516 | G6: 0.03494863284 | H6: 0.03402155893 | I6: 0.01960110256 | J6: 0.01936719609 | K6: 0.01429939527 | L6: 0.01276239666 | M6: 0.0119261934 | N6: 0.01036106376 | O6: 0.008824157388 | P6: 0.009997739959 | Q6: 0.0033762505
B7: Onshore Wind | C7: 0.001550160898 | D7: 0.001833202766 | E7: 0.002731049159 | F7: 0.00293175743 | G7: 0.003624078703 | H7: 0.004465785628 | I7: 0.00665246054 | J7: 0.008425092248 | K7: 0.01366127837 | L7: 0.0190236128 | M7: 0.02333563603 | N7: 0.02982565775 | O7: 0.0354148282 | P7: 0.04204526939 | Q7: 0.05451910322
B8: Geothermal | C8: 0.003905890047 | D8: 0.003739058811 | E8: 0.003822255492 | F8: 0.003780072331 | G8: 0.003794982301 | H8: 0.003683752875 | I8: 0.003644854833 | J8: 0.003579624825 | K8: 0.003661892799 | L8: 0.003864404685 | M8: 0.003752113476 | N8: 0.003801141434 | O8: 0.003913632503 | P8: 0.003948188751 | Q8: 0.01478503833
B9: Solar Thermal | C9: 0.0001367378768 | D9: 0.0001477555443 | E9: 0.0001463909874 | F9: 0.0001399444415 | G9: 0.0001473306882 | H9: 0.0001379025375 | I9: 0.0001270995507 | J9: 0.0001496707244 | K9: 0.0002131991495 | L9: 0.0002294079935 | M9: 0.0002988081696 | N9: 0.000451193205 | O9: 0.001088181972 | P9: 0.0022580386 | Q9: 0.0007760298226
B11: Year | C11: 2000 | D11: 2001 | E11: 2002 | F11: 2003 | G11: 2004 | H11: 2005 | I11: 2006 | J11: 2007 | K11: 2008 | L11: 2009 | M11: 2010 | N11: 2011 | O11: 2012 | P11: 2013
A12: U.S. Consumption Mix (includes imports/exports) | B12: Fleet Coal | C12: 0.532024024 | D12: 0.5133102208 | E12: 0.5056734039 | F12: 0.5137029654 | G12: 0.503206078 | H12: 0.4999686201 | I12: 0.4935553575 | J12: 0.4879878853 | K12: 0.48414084 | L12: 0.446626087 | M12: 0.4502750254 | N12: 0.4250202503 | O12: 0.3755355478 | P12: 0.3902600633
B13: Fleet Natural Gas | C13: 0.141901782 | D13: 0.1723774249 | E13: 0.1807422702 | F13: 0.1691593109 | G13: 0.1806857393 | H13: 0.1891192377 | I13: 0.2025459763 | J13: 0.2171556962 | K13: 0.2153651442 | L13: 0.2344619557 | M13: 0.2410131506 | N13: 0.2489321804 | O13: 0.3044755769 | P13: 0.2775561129
B14: Existing Nuclear | C14: 0.2071791005 | D14: 0.2079184413 | E14: 0.2045449298 | F14: 0.1992904989 | G14: 0.2016114281 | H14: 0.1952946444 | I14: 0.1964029604 | J14: 0.1962991438 | K14: 0.1988018873 | L14: 0.2054128687 | M14: 0.1983716555 | N14: 0.195291123 | O14: 0.1928402889 | P14: 0.1957806822
B15: Existing Hydro | C15: 0.08356615283 | D15: 0.06424719046 | E15: 0.07439925988 | F15: 0.0756615606 | G15: 0.07209375937 | H15: 0.07349220914 | I15: 0.07759921189 | J15: 0.06722672076 | K15: 0.07011606396 | L15: 0.07782324692 | M15: 0.07128944502 | N15: 0.08667501713 | O15: 0.07836346377 | P15: 0.07882365377
B16: Petroleum | C16: 0.02980571963 | D16: 0.03648238722 | E16: 0.02799736583 | F16: 0.03538327078 | G16: 0.03489142303 | H16: 0.03390650407 | I16: 0.01952299904 | J16: 0.01926641153 | K16: 0.0142062293 | L16: 0.01272864026 | M16: 0.01183144355 | N16: 0.01026138066 | O16: 0.008729255915 | P16: 0.009874982663
B17: Onshore Wind | C17: 0.001535366774 | D17: 0.001819053089 | E17: 0.002711172502 | F17: 0.002914009203 | G17: 0.00360287675 | H17: 0.004437995116 | I17: 0.006639704774 | J17: 0.008379066976 | K17: 0.01354763794 | L17: 0.01890687209 | M17: 0.02321443442 | N17: 0.0296160592 | O17: 0.03511749155 | P17: 0.04159384928
B18: Geothermal | C18: 0.003852969002 | D18: 0.00369910549 | E18: 0.003786573513 | F18: 0.003749569026 | G18: 0.003762621197 | H18: 0.003644361581 | I18: 0.003607976438 | J18: 0.003537179349 | K18: 0.003611908311 | L18: 0.003813796028 | M18: 0.00370636441 | N18: 0.003753803513 | O18: 0.003858327221 | P18: 0.003883889548
B19: Solar Thermal | C19: 0.0001348852103 | D19: 0.0001461767179 | E19: 0.0001450243806 | F19: 0.0001388151595 | G19: 0.0001460743493 | H19: 0.0001364279111 | I19: 0.0001258135661 | J19: 0.0001478960007 | K19: 0.0002102890014 | L19: 0.000226533311 | M19: 0.0002984811697 | N19: 0.0004501858684 | O19: 0.001080047994 | P19: 0.002226766386
B21: Year | C21: 2000 | D21: 2001 | E21: 2002 | F21: 2003 | G21: 2004 | H21: 2005 | I21: 2006 | J21: 2007 | K21: 2008 | L21: 2009 | M21: 2010 | N21: 2011 | O21: 2012 | P21: 2013
A22: North American Mix | B22: Fleet Coal | C22: 0.4998892308 | D22: 0.483297493 | E22: 0.4762520041 | F22: 0.484175564 | G22: 0.4723309834 | H22: 0.4684993572 | I22: 0.4627233297 | J22: 0.4579240635 | K22: 0.4539460016 | L22: 0.4175548209 | M22: 0.4226291207 | N22: 0.3970887178 | O22: 0.3513290029 | P22: 0.3654187545
B23: Fleet Natural Gas | C23: 0.1328270674 | D23: 0.1616302975 | E23: 0.1682077491 | F23: 0.1571619323 | G23: 0.1679942124 | H23: 0.176065425 | I23: 0.1891037175 | J23: 0.2026136778 | K23: 0.1996898278 | L23: 0.2168233838 | M23: 0.2249598004 | N23: 0.2323050962 | O23: 0.2823815571 | P23: 0.2579563631
B24: Existing Nuclear | C24: 0.2006114 | D24: 0.2025661142 | E24: 0.199166465 | F24: 0.1946320496 | G24: 0.199352216 | H24: 0.1931486895 | I24: 0.1958604157 | J24: 0.193990004 | K24: 0.1963363319 | L24: 0.2018139411 | M24: 0.1964215928 | N24: 0.1934082696 | O24: 0.1917023731 | P24: 0.1935600302
B25: Existing Hydro | C25: 0.1332632743 | D25: 0.1127137772 | E25: 0.1235771727 | F25: 0.1236654659 | G25: 0.1197571498 | H25: 0.1223071331 | I25: 0.1240454327 | J25: 0.1157137413 | K25: 0.1200137739 | L25: 0.1296560942 | M25: 0.1185113922 | N25: 0.135400354 | O25: 0.1282046288 | P25: 0.1286994845
B26: Petroleum | C26: 0.02842238672 | D26: 0.03464079133 | E26: 0.02675497189 | F26: 0.03410560058 | G26: 0.03361483288 | H26: 0.03225849989 | I26: 0.01844669608 | J26: 0.01834712061 | K26: 0.01366442988 | L26: 0.01224970497 | M26: 0.01105592099 | N26: 0.009435598135 | O26: 0.008085710618 | P26: 0.009066006997
B27: Onshore Wind | C27: 0.001428489459 | D27: 0.001709433254 | E27: 0.002519928276 | F27: 0.002769175875 | G27: 0.00344032643 | H27: 0.004330591989 | I27: 0.006461813652 | J27: 0.008101911256 | K27: 0.01291174817 | L27: 0.01827315768 | M27: 0.02277535944 | N27: 0.0285331607 | O27: 0.03378766114 | P27: 0.0397112117
B28: Geothermal | C28: 0.003437800339 | D28: 0.003311243854 | E28: 0.003391804037 | F28: 0.003365611277 | G28: 0.003379094176 | H28: 0.003267965846 | I28: 0.003245423662 | J28: 0.003176659545 | K28: 0.003248741645 | L28: 0.003424557284 | M28: 0.003345738111 | N28: 0.003371990133 | O28: 0.003472816035 | P28: 0.003504067616
B29: Solar Thermal | C29: 0.000120350935 | D29: 0.0001308496771 | E29: 0.0001299048541 | F29: 0.0001246004175 | G29: 0.0001311848728 | H29: 0.0001223374092 | I29: 0.0001131710063 | J29: 0.0001328220019 | K29: 0.0001891450661 | L29: 0.0002043401201 | M29: 0.0003010753093 | N29: 0.0004568134739 | O29: 0.001036250306 | P29: 0.002084081309
Q32: Gigawatts
C33: AEO 2014, 2040 Projection | V33: 2035
B34: Coal | C34: 1635.188354 | D34: =C34/$C$39 -> 0.3503137196 | S34: Coal | T34: Planned Additions | V34: 9.25
B35: Petro | C35: 15.759604 | D35: 0.0033762505 | T35: Unplanned Additions | V35: 1.67
B36: Natural Gas | C36: 1470.69104 | D36: 0.3150727238 | T36: Retirements | V36: 49.04 | W36: =SUM(V34:V35)-V36 -> -38.12
B37: Nuclear | C37: 811.464111 | D37: 0.1738435883 | S37: Nuclear | T37: Planned Additions | V37: 6.78
B38: Renewable | C38: 734.679688 | D38: 0.1573937177 | T38: Unplanned Additions | V38: 1.76
B39: Total | C39: =SUM(C34:C38) -> 4667.782797 | D39: 1 | T39: Retirements | V39: 6.11 | W39: =SUM(V37:V38)-V39 -> 2.43
S40: NGCC | T40: Planned Additions | V40: 14.29
B41: Renewable | C41: 2010 | D41: 2035 | E41: Delta | T41: Unplanned Additions | V41: 60.2
B42: Hydro | C42: 255.52 | D42: 310.08 | E42: =D42-C42 -> 54.56 | F42: =E42/D42 -> 0.1759545924 | T42: Retirements | V42: 0.23 | W42: =SUM(V40:V41)-V42 -> 74.26
B43: Geothermal | C43: 15.67 | D43: 46.54 | E43: =D43-C43 -> 30.87 | S43: Oil and NG Steam | T43: Planned Additions | V43: 0
B44: Municipal Waste | C44: 16.1 | D44: 14.67 | E44: -1.43 | T44: Unplanned Additions | V44: 0
B45: Biomass | C45: 11.51 | D45: 49.28 | E45: 37.77 | T45: Retirements | V45: 20.26 | W45: =SUM(V43:V44)-V45 -> -20.26
B46: Solar Thermal | C46: 0.82 | D46: 2.86 | E46: 2.04 | S46: Combustion Turbine/Diesel | T46: Planned Additions | V46: 5.02
B47: Solar Photovoltaic | C47: 0.46 | D47: 20.19 | E47: 19.73 | T47: Unplanned Additions | V47: 41.52
B48: Wind | C48: 94.49 | D48: 189.92 | E48: 95.43 | T48: Retirements | V48: 12.41 | W48: =SUM(V46:V47)-V48 -> 34.13
B49: Offshore Wind | C49: 0 | D49: 0.75 | E49: 0.75
D50: =SUM(D42:D49) -> 634.29
C52: AEO 2014, 2040 Projection | S52: Gigawatts | T52: 2010 | U52: 2035
B53: Coal | C53: 1635.188354 | D53: =C53/$C$62 -> 0.3594410672 | S53: Coal | T53: 313.36 | U53: 275.23 | V53: =U53-T53 -> -38.13
B54: Petro | C54: 15.759604 | D54: 0.00346421797 | S54: Oil and NG Steam | T54: 108.11 | U54: 87.85 | V54: =U54-T54 -> -20.26
B55: Natural Gas | C55: 1470.69104 | D55: 0.3232818749 | S55: Combined Cycle | T55: 197.95 | U55: 272.22 | V55: 74.27
B56: Nuclear | C56: 811.464111 | D56: 0.1783730451 | S56: Combustion Turbine/Diesel | T56: 137.65 | U56: 171.77 | V56: 34.12
B57: Hydro | C57: 297.337463 | D57: 0.06535962341 | S57: Nuclear | T57: 101.18 | U57: 110.92 | V57: 9.74
B58: Geothermal | C58: 67.26088 | D58: 0.01478503833
B59: Solar Thermal | C59: 3.530356 | D59: 0.0007760298226 | T59: 2010 | U59: 2035
B60: Wind | C60: 248.021194 | D60: 0.05451910322 | S60: Fleet Coal
B61: Offshore Wind | C61: 0 | D61: 0 | S61: SCPC | T61: 0
C62: =SUM(C53:C61) -> 4549.253002 | S62: Fleet NG
S63: NGCC | T63: 0
S64: Existing Nuclear
S65: Gen III+ | T65: 0
